Workbook

Sheet Student Loan Avalanche Calc
S2: Instructions:
C3: Student Loan Avalanche Calculator | L3: Extra Monthly Payment | M3: 0 | O3: (beyond minimum debt payments) | S3: 1) Fill in cells M3 and M4: the monthly amount you can put toward your debt and the
L4: One-Time Start-up Payment | M4: 0 | O4: (from cash you have in savings) | S4: one-time amount you can scrounge up to get things rolling.
S5: 2) Fill in your debts (starting in cell D13) from largest interest to smallest. Include the
C6: Provided by: LifeAndMyFinances.com | J6: Like the sheet? Need a bigger one with more inputs? We sell one on Etsy for just $3.99. Click here to check it out! | S6: balance and minimum payments, as well as interest.
C7: Copyright 2022 | S7: 3) Scroll down to see how quickly you could get out of student loan debt!
C10: Highest Interest | Y10: Lowest Interest
C12: Student Loan 1 | F12: Student Loan 2 | I12: Student Loan 3 | L12: Student Loan 4 | O12: Student Loan 5 | R12: Student Loan 6 | U12: Student Loan 7 | X12: Student Loan 8
C13: Balance | D13: $15,000.00 | F13: Balance | G13: $10,000.00 | I13: Balance | J13: $3,000.00 | L13: Balance | M13: $2,000.00 | O13: Balance | P13: 0 | R13: Balance | S13: 0 | U13: Balance | V13: 0 | X13: Balance | Y13: 0
C14: Minimum Payment | D14: $200.00 | F14: Minimum Payment | G14: $122.00 | I14: Minimum Payment | J14: $45.00 | L14: Minimum Payment | M14: $30.00 | O14: Minimum Payment | P14: 0 | R14: Minimum Payment | S14: 0 | U14: Minimum Payment | V14: 0 | X14: Minimum Payment | Y14: 0
C15: Interest Rate | D15: 12.0% | F15: Interest Rate | G15: 9.0% | I15: Interest Rate | J15: 6.8% | L15: Interest Rate | M15: 6.8% | O15: Interest Rate | P15: 0.0% | R15: Interest Rate | S15: 0.0% | U15: Interest Rate | V15: 0.0% | X15: Interest Rate | Y15: 0.0%
B17: Month | C17: Payment | D17: Balance | F17: Payment | G17: Balance | I17: Payment | J17: Balance | L17: Payment | M17: Balance | O17: Payment | P17: Balance | R17: Payment | S17: Balance | U17: Payment | V17: Balance | X17: Payment | Y17: Balance
B18: 1 | C18: =IF((M4+M3)>=D13,D13,(M3+M4+D14)) -> $200.00 | D18: =IF(D13-C18<=0,0,(D13-C18)) -> $14,800.00 | F18: =IF((M3+M4)>=(D13+G13),G13,IF(AND(C18=D13,C18<>0),(M3+M4-D13+G14),G14)) -> $122.00 | G18: =IF(G13-F18<=0,0,(G13-F18)) -> $9,878.00 | H18: 0 | I18: =IF((M3+M4)>=(G13+J13+D13),J13,IF(AND(F18=G13, F18<>0),(M3+M4-G13-D13+J14),J14)) -> $45.00 | J18: =IF(J13-I18<=0,0,(J13-I18)) -> $2,955.00 | K18: 0 | L18: =IF((M3+M4)>=(J13+M13+G13+D13),M13,IF(AND(I18=J13, I18<>0),(M3+M4-J13-G13-D13+M14),M14)) -> $30.00 | M18: =IF(M13-L18<=0,0,(M13-L18)) -> $1,970.00 | N18: 0 | O18: =IF((M3+M4)>=(M13+P13+J13+G13+D13),P13,IF(AND(L18=M13,L18<>0),(M3+M4-M13-J13-G13-D13+P14),P14)) -> 0 | P18: =IF(P13-O18<=0,0,(P13-O18)) -> 0 | Q18: 0 | R18: =IF((M3+M4)>=(P13+S13+M13+J13+G13+D13),S13,IF(AND(O18=P13,O18<>0),(M3+M4-P13-M13-J13-G13-D13+S14),S14)) -> 0 | S18: =IF(S13-R18<=0,0,(S13-R18)) -> 0 | T18: 0 | U18: =IF(($M$3+$M$4)>=(S13+V13+P13+M13+J13+G13+D13),V13,IF(AND(R18=S$13,R18<>0),($M$3+$M$4-S13-P13-M13-J13-G13-D13+V14),V14)) -> 0 | V18: =IF(V13-U18<=0,0,(V13-U18)) -> 0 | W18: 0 | X18: =IF(($M$3+$M$4)>=(V13+Y13+S13+P13+M13+J13+G13+D13),Y13,IF(AND(U18=V$13,U18<>0),($M$3+$M$4-V13-S13-P13-M13-J13-G13-D13+Y14),Y14)) -> 0 | Y18: =IF(Y13-X18<=0,0,(Y13-X18)) -> 0 | Z18: 0
B19: 2 | C19: =IF((D18-$M$3-$D$14-SUM(H19,K19,N19,Q19,T19,W19,Z19))<=0,($M$3+(D18-$M$3)),($M$3+$D$14+SUM(H19,K19,N19,Q19,T19,W19,Z19))) -> $200.00 | D19: =IF((D18-C19)<=0.0001,0,(D18-C19)*(1+(D$15/12))) -> $14,746.00 | F19: =IF(AND(((G18-$M$3+C19-G$14-D$14-SUM(K19,N19,Q19,T19,W19,Z19))<=0),D19=0),G18,IF(D19=0,$M$3-C19+G$14+D$14+SUM(K19,N19,Q19,T19,W19,Z19),G$14)) -> $122.00 | G19: =IF((G18-F19)<=0.0001,0,(G18-F19)*(1+(G$15/12))) -> $9,829.17 | H19: =IF(G18=0,G$14,0) -> 0 | I19: =IF(AND(((J18-$M$3+F19+C19-J$14-G$14-D$14-SUM(N19,Q19,T19,W19,Z19))<=0),G19+D19=0),J18,IF(J$14>=J18,J18,IF(AND(G19=0,D19=0),$M$3-F19-C19+J$14+G$14+D$14+SUM(N19,Q19,T19,W19,Z19),J$14))) -> $45.00 | J19: =IF((J18-I19)<=0.0001,0,(J18-I19)*(1+(J$15/12))) -> $2,926.49 | K19: =IF(J18=0,J$14,0) -> 0 | L19: =IF(AND(((M18-$M$3+I19+F19+C19-M$14-J$14-G$14-D$14-SUM(Q19,T19,W19,Z19))<=0),J19+G19+D19=0),M18,IF(M$14>=M18,M18, IF(AND(J19=0,G19=0,D19=0),$M$3-I19-F19-C19+M$14+J$14+G$14+D$14+SUM(Q19,T19,W19,Z19),M$14))) -> $30.00 | M19: =IF((M18-L19)<=0.0001,0,(M18-L19)*(1+(M$15/12))) -> $1,950.99 | N19: =IF(M18=0,M$14,0) -> 0 | O19: =IF(AND(((P18-$M$3+L19+I19+F19+C19-P$14-M$14-J$14-G$14-D$14-SUM(T19,W19,Z19))<=0),M19+J19+G19+D19=0),P18,IF(P$14>=P18,P18,IF(AND(M19=0,J19=0,G19=0,D19=0),$M$3-L19-I19-F19-C19+P$14+M$14+J$14+G$14+D$14+SUM(T19,W19,Z19),P$14))) -> 0 | P19: =IF((P18-O19)<=0.0001,0,(P18-O19)*(1+(P$15/12))) -> 0 | Q19: =IF(P18=0,P$14,0) -> 0 | R19: =IF(AND(((S18-$M$3+O19+L19+I19+F19+C19-S$14-P$14-M$14-J$14-G$14-D$14-SUM(W19,Z19))<=0),P19+M19+J19+G19+D19=0),S18,IF(S$14>=S18,S18,IF(AND(P19=0,M19=0,J19=0,G19=0),$M$3-O19-L19-I19-F19-C19+S$14+P$14+M$14+J$14+G$14+D$14+SUM(W19,Z19),S$14))) -> 0 | S19: =IF((S18-R19)<=0.0001,0,(S18-R19)*(1+(S$15/12))) -> 0 | T19: =IF(S18=0,S$14,0) -> 0 | U19: =IF(AND(((V18-$M$3+R19+O19+L19+I19+F19+C19-V$14-S$14-P$14-M$14-J$14-G$14-D$14-SUM(Z19))<=0),S19+P19+M19+J19+G19+D19=0),V18,IF(V$14>=V18,V18,IF(AND(S19=0,P19=0,M19=0,J19=0,G19=0,D19=0),$M$3-R19-O19-L19-I19-F19-C19+V$14+S$14+P$14+M$14+J$14+G$14+D$14+SUM(Z19),V$14))) -> 0 | V19: =IF((V18-U19)<=0.0001,0,(V18-U19)*(1+(V$15/12))) -> 0 | W19: =IF(V18=0,V$14,0) -> 0 | X19: =IF(AND(((Y18-$M$3+U19+R19+O19+L19+I19+F19+C19-Y$14-V$14-S$14-P$14-M$14-J$14-G$14-D$14)<=0),V19+S19+P19+M19+J19+G19+D19=0),Y18,IF(Y$14>=Y18,Y18,IF(AND(V19=0,S19=0,P19=0,M19=0,J19=0,G19=0,D19=0),$M$3-U19-R19-O19-L19-I19-F19-C19+Y$14+V$14+S$14+P$14+M$14+J$14+G$14+D$14,Y$14))) -> 0 | Y19: =IF((Y18-X19)<=0.0001,0,(Y18-X19)*(1+(Y$15/12))) -> 0 | Z19: =IF(Y18=0,Y$14,0) -> 0
B20: 3 | C20: =IF((D19-$M$3-$D$14-SUM(H20,K20,N20,Q20,T20,W20,Z20))<=0,($M$3+(D19-$M$3)),($M$3+$D$14+SUM(H20,K20,N20,Q20,T20,W20,Z20))) -> $200.00 | D20: =IF((D19-C20)<=0.0001,0,(D19-C20)*(1+(D$15/12))) -> $14,691.46 | F20: $122.00 | G20: $9,779.97 | H20: =IF(G19=0,G$14,0) -> 0 | I20: $45.00 | J20: =IF((J19-I20)<=0.0001,0,(J19-I20)*(1+(J$15/12))) -> $2,897.82 | K20: =IF(J19=0,J$14,0) -> 0 | L20: $30.00 | M20: =IF((M19-L20)<=0.0001,0,(M19-L20)*(1+(M$15/12))) -> $1,931.88 | N20: =IF(M19=0,M$14,0) -> 0 | O20: 0 | P20: =IF((P19-O20)<=0.0001,0,(P19-O20)*(1+(P$15/12))) -> 0 | Q20: =IF(P19=0,P$14,0) -> 0 | R20: 0 | S20: =IF((S19-R20)<=0.0001,0,(S19-R20)*(1+(S$15/12))) -> 0 | T20: =IF(S19=0,S$14,0) -> 0 | U20: 0 | V20: =IF((V19-U20)<=0.0001,0,(V19-U20)*(1+(V$15/12))) -> 0 | W20: =IF(V19=0,V$14,0) -> 0 | X20: 0 | Y20: =IF((Y19-X20)<=0.0001,0,(Y19-X20)*(1+(Y$15/12))) -> 0 | Z20: =IF(Y19=0,Y$14,0) -> 0
B21: 4 | C21: $200.00 | D21: =IF((D20-C21)<=0.0001,0,(D20-C21)*(1+(D$15/12))) -> $14,636.37 | F21: =IF(AND(((G20-$M$3+C21-G$14-D$14-SUM(K21,N21,Q21,T21,W21,Z21))<=0),D21=0),G20,IF(D21=0,$M$3-C21+G$14+D$14+SUM(K21,N21,Q21,T21,W21,Z21),G$14)) -> $122.00 | G21: $9,730.41 | H21: =IF(G20=0,G$14,0) -> 0 | I21: $45.00 | J21: $2,868.98 | K21: =IF(J20=0,J$14,0) -> 0 | L21: $30.00 | M21: $1,912.66 | N21: =IF(M20=0,M$14,0) -> 0 | O21: 0 | P21: 0 | Q21: =IF(P20=0,P$14,0) -> 0 | R21: 0 | S21: =IF((S20-R21)<=0.0001,0,(S20-R21)*(1+(S$15/12))) -> 0 | T21: =IF(S20=0,S$14,0) -> 0 | U21: 0 | V21: 0 | W21: =IF(V20=0,V$14,0) -> 0 | X21: 0 | Y21: 0 | Z21: =IF(Y20=0,Y$14,0) -> 0
B22: 5 | C22: $200.00 | D22: =IF((D21-C22)<=0.0001,0,(D21-C22)*(1+(D$15/12))) -> $14,580.74 | F22: $122.00 | G22: $9,680.47 | H22: 0 | I22: =IF(AND(((J21-$M$3+F22+C22-J$14-G$14-D$14-SUM(N22,Q22,T22,W22,Z22))<=0),G22+D22=0),J21,IF(J$14>=J21,J21,IF(AND(G22=0,D22=0),$M$3-F22-C22+J$14+G$14+D$14+SUM(N22,Q22,T22,W22,Z22),J$14))) -> $45.00 | J22: $2,839.99 | K22: 0 | L22: $30.00 | M22: $1,893.32 | N22: 0 | O22: 0 | P22: 0 | Q22: 0 | R22: 0 | S22: 0 | T22: 0 | U22: 0 | V22: 0 | W22: 0 | X22: 0 | Y22: 0 | Z22: 0
B23: 6 | C23: $200.00 | D23: $14,524.55 | F23: $122.00 | G23: $9,630.16 | H23: 0 | I23: $45.00 | J23: $2,810.83 | K23: 0 | L23: $30.00 | M23: $1,873.88 | N23: 0 | O23: 0 | P23: 0 | Q23: 0 | R23: 0 | S23: 0 | T23: 0 | U23: 0 | V23: 0 | W23: 0 | X23: 0 | Y23: 0 | Z23: 0
B24: 7 | C24: $200.00 | D24: $14,467.79 | F24: $122.00 | G24: $9,579.47 | H24: 0 | I24: $45.00 | J24: $2,781.50 | K24: 0 | L24: $30.00 | M24: $1,854.33 | N24: 0 | O24: 0 | P24: 0 | Q24: 0 | R24: 0 | S24: 0 | T24: 0 | U24: 0 | V24: 0 | W24: 0 | X24: 0 | Y24: 0 | Z24: 0
B25: 8 | C25: $200.00 | D25: $14,410.47 | F25: $122.00 | G25: $9,528.40 | H25: 0 | I25: $45.00 | J25: $2,752.01 | K25: 0 | L25: $30.00 | M25: $1,834.67 | N25: 0 | O25: 0 | P25: 0 | Q25: 0 | R25: 0 | S25: 0 | T25: 0 | U25: 0 | V25: 0 | W25: 0 | X25: 0 | Y25: 0 | Z25: 0
B26: 9 | C26: $200.00 | D26: $14,352.57 | F26: $122.00 | G26: $9,476.95 | H26: 0 | I26: $45.00 | J26: $2,722.34 | K26: 0 | L26: $30.00 | M26: $1,814.90 | N26: 0 | O26: 0 | P26: 0 | Q26: 0 | R26: 0 | S26: 0 | T26: 0 | U26: 0 | V26: 0 | W26: 0 | X26: 0 | Y26: 0 | Z26: 0
B27: 10 | C27: $200.00 | D27: $14,294.10 | F27: $122.00 | G27: $9,425.11 | H27: 0 | I27: $45.00 | J27: $2,692.52 | K27: 0 | L27: $30.00 | M27: $1,795.01 | N27: 0 | O27: 0 | P27: 0 | Q27: 0 | R27: 0 | S27: 0 | T27: 0 | U27: 0 | V27: 0 | W27: 0 | X27: 0 | Y27: 0 | Z27: 0
B28: 11 | C28: $200.00 | D28: $14,235.04 | F28: $122.00 | G28: $9,372.89 | H28: 0 | I28: $45.00 | J28: $2,662.52 | K28: 0 | L28: $30.00 | M28: $1,775.01 | N28: 0 | O28: 0 | P28: 0 | Q28: 0 | R28: 0 | S28: 0 | T28: 0 | U28: 0 | V28: 0 | W28: 0 | X28: 0 | Y28: 0 | Z28: 0
B29: 12 | C29: $200.00 | D29: $14,175.39 | F29: $122.00 | G29: =IF((G28-F29)<=0.0001,0,(G28-F29)*(1+(G$15/12))) -> $9,320.27 | H29: 0 | I29: $45.00 | J29: $2,632.35 | K29: 0 | L29: $30.00 | M29: $1,754.90 | N29: 0 | O29: 0 | P29: 0 | Q29: 0 | R29: 0 | S29: 0 | T29: 0 | U29: 0 | V29: 0 | W29: 0 | X29: 0 | Y29: 0 | Z29: 0
B30: 13 | C30: $200.00 | D30: $14,115.14 | F30: $122.00 | G30: $9,267.25 | H30: 0 | I30: $45.00 | J30: $2,602.01 | K30: 0 | L30: $30.00 | M30: $1,734.68 | N30: 0 | O30: 0 | P30: 0 | Q30: 0 | R30: 0 | S30: 0 | T30: 0 | U30: 0 | V30: 0 | W30: 0 | X30: 0 | Y30: 0 | Z30: 0
B31: 14 | C31: $200.00 | D31: $14,054.30 | F31: $122.00 | G31: $9,213.84 | H31: 0 | I31: $45.00 | J31: $2,571.50 | K31: 0 | L31: $30.00 | M31: $1,714.34 | N31: 0 | O31: 0 | P31: 0 | Q31: 0 | R31: 0 | S31: 0 | T31: 0 | U31: 0 | V31: 0 | W31: 0 | X31: 0 | Y31: 0 | Z31: 0
B32: 15 | C32: $200.00 | D32: $13,992.84 | F32: $122.00 | G32: $9,160.03 | H32: 0 | I32: $45.00 | J32: $2,540.82 | K32: 0 | L32: $30.00 | M32: $1,693.88 | N32: 0 | O32: 0 | P32: 0 | Q32: 0 | R32: 0 | S32: 0 | T32: 0 | U32: 0 | V32: 0 | W32: 0 | X32: 0 | Y32: 0 | Z32: 0
B33: 16 | C33: $200.00 | D33: $13,930.77 | F33: $122.00 | G33: $9,105.82 | H33: 0 | I33: $45.00 | J33: $2,509.96 | K33: 0 | L33: $30.00 | M33: $1,673.31 | N33: 0 | O33: 0 | P33: 0 | Q33: 0 | R33: 0 | S33: 0 | T33: 0 | U33: 0 | V33: 0 | W33: 0 | X33: 0 | Y33: 0 | Z33: 0
B34: 17 | C34: $200.00 | D34: $13,868.08 | F34: $122.00 | G34: $9,051.20 | H34: 0 | I34: $45.00 | J34: $2,478.93 | K34: 0 | L34: $30.00 | M34: $1,652.62 | N34: 0 | O34: 0 | P34: 0 | Q34: 0 | R34: 0 | S34: 0 | T34: 0 | U34: 0 | V34: 0 | W34: 0 | X34: 0 | Y34: 0 | Z34: 0
B35: 18 | C35: $200.00 | D35: $13,804.76 | F35: $122.00 | G35: $8,996.17 | H35: 0 | I35: $45.00 | J35: $2,447.72 | K35: 0 | L35: $30.00 | M35: $1,631.82 | N35: 0 | O35: 0 | P35: 0 | Q35: 0 | R35: 0 | S35: 0 | T35: 0 | U35: 0 | V35: 0 | W35: 0 | X35: 0 | Y35: 0 | Z35: 0
B36: 19 | C36: $200.00 | D36: $13,740.80 | F36: $122.00 | G36: $8,940.72 | H36: 0 | I36: $45.00 | J36: $2,416.34 | K36: 0 | L36: $30.00 | M36: $1,610.89 | N36: 0 | O36: 0 | P36: 0 | Q36: 0 | R36: 0 | S36: 0 | T36: 0 | U36: 0 | V36: 0 | W36: 0 | X36: 0 | Y36: 0 | Z36: 0
B37: 20 | C37: $200.00 | D37: $13,676.21 | F37: $122.00 | G37: $8,884.86 | H37: 0 | I37: $45.00 | J37: $2,384.78 | K37: 0 | L37: $30.00 | M37: $1,589.85 | N37: 0 | O37: 0 | P37: 0 | Q37: 0 | R37: 0 | S37: 0 | T37: 0 | U37: 0 | V37: 0 | W37: 0 | X37: 0 | Y37: 0 | Z37: 0
B38: 21 | C38: $200.00 | D38: $13,610.97 | F38: $122.00 | G38: $8,828.58 | H38: 0 | I38: $45.00 | J38: $2,353.03 | K38: 0 | L38: $30.00 | M38: $1,568.69 | N38: 0 | O38: 0 | P38: 0 | Q38: 0 | R38: 0 | S38: 0 | T38: 0 | U38: 0 | V38: 0 | W38: 0 | X38: 0 | Y38: 0 | Z38: 0
B39: 22 | C39: $200.00 | D39: $13,545.08 | F39: $122.00 | G39: $8,771.88 | H39: 0 | I39: $45.00 | J39: $2,321.11 | K39: 0 | L39: $30.00 | M39: $1,547.41 | N39: 0 | O39: 0 | P39: 0 | Q39: 0 | R39: 0 | S39: 0 | T39: 0 | U39: 0 | V39: 0 | W39: 0 | X39: 0 | Y39: 0 | Z39: 0
B40: 23 | C40: $200.00 | D40: $13,478.53 | F40: $122.00 | G40: $8,714.76 | H40: 0 | I40: $45.00 | J40: $2,289.01 | K40: 0 | L40: $30.00 | M40: $1,526.01 | N40: 0 | O40: 0 | P40: 0 | Q40: 0 | R40: 0 | S40: 0 | T40: 0 | U40: 0 | V40: 0 | W40: 0 | X40: 0 | Y40: 0 | Z40: 0
B41: 24 | C41: $200.00 | D41: $13,411.32 | F41: $122.00 | G41: $8,657.20 | H41: 0 | I41: $45.00 | J41: $2,256.73 | K41: 0 | L41: $30.00 | M41: $1,504.49 | N41: 0 | O41: 0 | P41: 0 | Q41: 0 | R41: 0 | S41: 0 | T41: 0 | U41: 0 | V41: 0 | W41: 0 | X41: 0 | Y41: 0 | Z41: 0
B42: 25 | C42: $200.00 | D42: $13,343.43 | F42: $122.00 | G42: $8,599.22 | H42: 0 | I42: $45.00 | J42: $2,224.26 | K42: 0 | L42: $30.00 | M42: $1,482.84 | N42: 0 | O42: 0 | P42: 0 | Q42: 0 | R42: 0 | S42: 0 | T42: 0 | U42: 0 | V42: 0 | W42: 0 | X42: 0 | Y42: 0 | Z42: 0
B43: 26 | C43: $200.00 | D43: $13,274.87 | F43: $122.00 | G43: $8,540.80 | H43: 0 | I43: $45.00 | J43: $2,191.61 | K43: 0 | L43: $30.00 | M43: $1,461.07 | N43: 0 | O43: 0 | P43: 0 | Q43: 0 | R43: 0 | S43: 0 | T43: 0 | U43: 0 | V43: 0 | W43: 0 | X43: 0 | Y43: 0 | Z43: 0
B44: 27 | C44: $200.00 | D44: $13,205.62 | F44: $122.00 | G44: $8,481.94 | H44: 0 | I44: $45.00 | J44: $2,158.77 | K44: 0 | L44: $30.00 | M44: $1,439.18 | N44: 0 | O44: 0 | P44: 0 | Q44: 0 | R44: 0 | S44: 0 | T44: 0 | U44: 0 | V44: 0 | W44: 0 | X44: 0 | Y44: 0 | Z44: 0
B45: 28 | C45: $200.00 | D45: $13,135.67 | F45: $122.00 | G45: $8,422.64 | H45: 0 | I45: $45.00 | J45: $2,125.75 | K45: 0 | L45: $30.00 | M45: $1,417.17 | N45: 0 | O45: 0 | P45: 0 | Q45: 0 | R45: 0 | S45: 0 | T45: 0 | U45: 0 | V45: 0 | W45: 0 | X45: 0 | Y45: 0 | Z45: 0
B46: 29 | C46: $200.00 | D46: $13,065.03 | F46: $122.00 | G46: $8,362.89 | H46: 0 | I46: $45.00 | J46: $2,092.54 | K46: 0 | L46: $30.00 | M46: $1,395.03 | N46: 0 | O46: 0 | P46: 0 | Q46: 0 | R46: 0 | S46: 0 | T46: 0 | U46: 0 | V46: 0 | W46: 0 | X46: 0 | Y46: 0 | Z46: 0
B47: 30 | C47: $200.00 | D47: $12,993.68 | F47: $122.00 | G47: $8,302.70 | H47: 0 | I47: $45.00 | J47: $2,059.15 | K47: 0 | L47: $30.00 | M47: $1,372.76 | N47: 0 | O47: 0 | P47: 0 | Q47: 0 | R47: 0 | S47: 0 | T47: 0 | U47: 0 | V47: 0 | W47: 0 | X47: 0 | Y47: 0 | Z47: 0
B48: 31 | C48: $200.00 | D48: $12,921.62 | F48: $122.00 | G48: $8,242.05 | H48: 0 | I48: $45.00 | J48: $2,025.56 | K48: 0 | L48: $30.00 | M48: $1,350.37 | N48: 0 | O48: 0 | P48: 0 | Q48: 0 | R48: 0 | S48: 0 | T48: 0 | U48: 0 | V48: 0 | W48: 0 | X48: 0 | Y48: 0 | Z48: 0
B49: 32 | C49: $200.00 | D49: $12,848.83 | F49: $122.00 | G49: $8,180.95 | H49: 0 | I49: $45.00 | J49: $1,991.78 | K49: 0 | L49: $30.00 | M49: $1,327.86 | N49: 0 | O49: 0 | P49: 0 | Q49: 0 | R49: 0 | S49: 0 | T49: 0 | U49: 0 | V49: 0 | W49: 0 | X49: 0 | Y49: 0 | Z49: 0
B50: 33 | C50: $200.00 | D50: $12,775.32 | F50: $122.00 | G50: $8,119.40 | H50: 0 | I50: $45.00 | J50: $1,957.81 | K50: 0 | L50: $30.00 | M50: $1,305.21 | N50: 0 | O50: 0 | P50: 0 | Q50: 0 | R50: 0 | S50: 0 | T50: 0 | U50: 0 | V50: 0 | W50: 0 | X50: 0 | Y50: 0 | Z50: 0
B51: 34 | C51: $200.00 | D51: $12,701.07 | F51: =IF(AND(((G50-$M$3+C51-G$14-D$14-SUM(K51,N51,Q51,T51,W51,Z51))<=0),D51=0),G50,IF(D51=0,$M$3-C51+G$14+D$14+SUM(K51,N51,Q51,T51,W51,Z51),G$14)) -> $122.00 | G51: $8,057.38 | H51: 0 | I51: =IF(AND(((J50-$M$3+F51+C51-J$14-G$14-D$14-SUM(N51,Q51,T51,W51,Z51))<=0),G51+D51=0),J50,IF(J$14>=J50,J50,IF(AND(G51=0,D51=0),$M$3-F51-C51+J$14+G$14+D$14+SUM(N51,Q51,T51,W51,Z51),J$14))) -> $45.00 | J51: $1,923.65 | K51: 0 | L51: =IF(AND(((M50-$M$3+I51+F51+C51-M$14-J$14-G$14-D$14-SUM(Q51,T51,W51,Z51))<=0),J51+G51+D51=0),M50,IF(M$14>=M50,M50, IF(AND(J51=0,G51=0,D51=0),$M$3-I51-F51-C51+M$14+J$14+G$14+D$14+SUM(Q51,T51,W51,Z51),M$14))) -> $30.00 | M51: $1,282.44 | N51: 0 | O51: =IF(AND(((P50-$M$3+L51+I51+F51+C51-P$14-M$14-J$14-G$14-D$14-SUM(T51,W51,Z51))<=0),M51+J51+G51+D51=0),P50,IF(P$14>=P50,P50,IF(AND(M51=0,J51=0,G51=0,D51=0),$M$3-L51-I51-F51-C51+P$14+M$14+J$14+G$14+D$14+SUM(T51,W51,Z51),P$14))) -> 0 | P51: 0 | Q51: 0 | R51: =IF(AND(((S50-$M$3+O51+L51+I51+F51+C51-S$14-P$14-M$14-J$14-G$14-D$14-SUM(W51,Z51))<=0),P51+M51+J51+G51+D51=0),S50,IF(S$14>=S50,S50,IF(AND(P51=0,M51=0,J51=0,G51=0),$M$3-O51-L51-I51-F51-C51+S$14+P$14+M$14+J$14+G$14+D$14+SUM(W51,Z51),S$14))) -> 0 | S51: 0 | T51: 0 | U51: =IF(AND(((V50-$M$3+R51+O51+L51+I51+F51+C51-V$14-S$14-P$14-M$14-J$14-G$14-D$14-SUM(Z51))<=0),S51+P51+M51+J51+G51+D51=0),V50,IF(V$14>=V50,V50,IF(AND(S51=0,P51=0,M51=0,J51=0,G51=0,D51=0),$M$3-R51-O51-L51-I51-F51-C51+V$14+S$14+P$14+M$14+J$14+G$14+D$14+SUM(Z51),V$14))) -> 0 | V51: 0 | W51: 0 | X51: =IF(AND(((Y50-$M$3+U51+R51+O51+L51+I51+F51+C51-Y$14-V$14-S$14-P$14-M$14-J$14-G$14-D$14)<=0),V51+S51+P51+M51+J51+G51+D51=0),Y50,IF(Y$14>=Y50,Y50,IF(AND(V51=0,S51=0,P51=0,M51=0,J51=0,G51=0,D51=0),$M$3-U51-R51-O51-L51-I51-F51-C51+Y$14+V$14+S$14+P$14+M$14+J$14+G$14+D$14,Y$14))) -> 0 | Y51: 0 | Z51: 0
B52: 35 | C52: $200.00 | D52: $12,626.08 | F52: $122.00 | G52: $7,994.89 | H52: 0 | I52: $45.00 | J52: $1,889.30 | K52: 0 | L52: $30.00 | M52: $1,259.53 | N52: 0 | O52: 0 | P52: 0 | Q52: 0 | R52: 0 | S52: 0 | T52: 0 | U52: 0 | V52: 0 | W52: 0 | X52: 0 | Y52: 0 | Z52: 0
B53: 36 | C53: $200.00 | D53: $12,550.35 | F53: $122.00 | G53: $7,931.94 | H53: 0 | I53: $45.00 | J53: $1,854.75 | K53: 0 | L53: $30.00 | M53: $1,236.50 | N53: 0 | O53: 0 | P53: 0 | Q53: 0 | R53: 0 | S53: 0 | T53: 0 | U53: 0 | V53: 0 | W53: 0 | X53: 0 | Y53: 0 | Z53: 0
B54: 37 | C54: $200.00 | D54: $12,473.85 | F54: $122.00 | G54: $7,868.51 | H54: 0 | I54: $45.00 | J54: $1,820.01 | K54: 0 | L54: $30.00 | M54: $1,213.34 | N54: 0 | O54: 0 | P54: 0 | Q54: 0 | R54: 0 | S54: 0 | T54: 0 | U54: 0 | V54: 0 | W54: 0 | X54: 0 | Y54: 0 | Z54: 0
B55: 38 | C55: $200.00 | D55: $12,396.59 | F55: $122.00 | G55: $7,804.61 | H55: 0 | I55: $45.00 | J55: $1,785.06 | K55: 0 | L55: $30.00 | M55: $1,190.04 | N55: 0 | O55: 0 | P55: 0 | Q55: 0 | R55: 0 | S55: 0 | T55: 0 | U55: 0 | V55: 0 | W55: 0 | X55: 0 | Y55: 0 | Z55: 0
B56: 39 | C56: $200.00 | D56: $12,318.55 | F56: $122.00 | G56: $7,740.23 | H56: 0 | I56: $45.00 | J56: $1,749.92 | K56: 0 | L56: $30.00 | M56: $1,166.62 | N56: 0 | O56: 0 | P56: 0 | Q56: 0 | R56: 0 | S56: 0 | T56: 0 | U56: 0 | V56: 0 | W56: 0 | X56: 0 | Y56: 0 | Z56: 0
B57: 40 | C57: $200.00 | D57: $12,239.74 | F57: $122.00 | G57: $7,675.37 | H57: 0 | I57: $45.00 | J57: $1,714.59 | K57: 0 | L57: $30.00 | M57: $1,143.06 | N57: 0 | O57: 0 | P57: 0 | Q57: 0 | R57: 0 | S57: 0 | T57: 0 | U57: 0 | V57: 0 | W57: 0 | X57: 0 | Y57: 0 | Z57: 0
B58: 41 | C58: $200.00 | D58: $12,160.14 | F58: $122.00 | G58: $7,610.02 | H58: 0 | I58: $45.00 | J58: $1,679.05 | K58: 0 | L58: $30.00 | M58: $1,119.36 | N58: 0 | O58: 0 | P58: 0 | Q58: 0 | R58: 0 | S58: 0 | T58: 0 | U58: 0 | V58: 0 | W58: 0 | X58: 0 | Y58: 0 | Z58: 0
B59: 42 | C59: $200.00 | D59: $12,079.74 | F59: $122.00 | G59: $7,544.18 | H59: 0 | I59: $45.00 | J59: $1,643.31 | K59: 0 | L59: $30.00 | M59: $1,095.54 | N59: 0 | O59: 0 | P59: 0 | Q59: 0 | R59: 0 | S59: 0 | T59: 0 | U59: 0 | V59: 0 | W59: 0 | X59: 0 | Y59: 0 | Z59: 0
B60: 43 | C60: $200.00 | D60: $11,998.53 | F60: $122.00 | G60: $7,477.84 | H60: 0 | I60: $45.00 | J60: $1,607.36 | K60: 0 | L60: $30.00 | M60: $1,071.58 | N60: 0 | O60: 0 | P60: 0 | Q60: 0 | R60: 0 | S60: 0 | T60: 0 | U60: 0 | V60: 0 | W60: 0 | X60: 0 | Y60: 0 | Z60: 0
B61: 44 | C61: $200.00 | D61: $11,916.52 | F61: $122.00 | G61: $7,411.01 | H61: 0 | I61: $45.00 | J61: $1,571.22 | K61: 0 | L61: $30.00 | M61: $1,047.48 | N61: 0 | O61: 0 | P61: 0 | Q61: 0 | R61: 0 | S61: 0 | T61: 0 | U61: 0 | V61: 0 | W61: 0 | X61: 0 | Y61: 0 | Z61: 0
B62: 45 | C62: $200.00 | D62: $11,833.69 | F62: $122.00 | G62: $7,343.68 | H62: 0 | I62: $45.00 | J62: $1,534.87 | K62: 0 | L62: $30.00 | M62: $1,023.24 | N62: 0 | O62: 0 | P62: 0 | Q62: 0 | R62: 0 | S62: 0 | T62: 0 | U62: 0 | V62: 0 | W62: 0 | X62: 0 | Y62: 0 | Z62: 0
B63: 46 | C63: $200.00 | D63: $11,750.02 | F63: $122.00 | G63: $7,275.84 | H63: 0 | I63: $45.00 | J63: $1,498.31 | K63: 0 | L63: $30.00 | M63: $998.87 | N63: 0 | O63: 0 | P63: 0 | Q63: 0 | R63: 0 | S63: 0 | T63: 0 | U63: 0 | V63: 0 | W63: 0 | X63: 0 | Y63: 0 | Z63: 0
B64: 47 | C64: $200.00 | D64: $11,665.52 | F64: $122.00 | G64: $7,207.50 | H64: 0 | I64: $45.00 | J64: $1,461.54 | K64: 0 | L64: $30.00 | M64: $974.36 | N64: 0 | O64: 0 | P64: 0 | Q64: 0 | R64: 0 | S64: 0 | T64: 0 | U64: 0 | V64: 0 | W64: 0 | X64: 0 | Y64: 0 | Z64: 0
B65: 48 | C65: $200.00 | D65: $11,580.18 | F65: $122.00 | G65: $7,138.64 | H65: 0 | I65: $45.00 | J65: $1,424.57 | K65: 0 | L65: $30.00 | M65: $949.71 | N65: 0 | O65: 0 | P65: 0 | Q65: 0 | R65: 0 | S65: 0 | T65: 0 | U65: 0 | V65: 0 | W65: 0 | X65: 0 | Y65: 0 | Z65: 0
B66: 49 | C66: $200.00 | D66: $11,493.98 | F66: $122.00 | G66: $7,069.26 | H66: 0 | I66: $45.00 | J66: $1,387.39 | K66: 0 | L66: $30.00 | M66: $924.93 | N66: 0 | O66: 0 | P66: 0 | Q66: 0 | R66: 0 | S66: 0 | T66: 0 | U66: 0 | V66: 0 | W66: 0 | X66: 0 | Y66: 0 | Z66: 0
B67: 50 | C67: $200.00 | D67: $11,406.92 | F67: $122.00 | G67: $6,999.37 | H67: 0 | I67: $45.00 | J67: $1,349.99 | K67: 0 | L67: $30.00 | M67: $900.00 | N67: 0 | O67: 0 | P67: 0 | Q67: 0 | R67: 0 | S67: 0 | T67: 0 | U67: 0 | V67: 0 | W67: 0 | X67: 0 | Y67: 0 | Z67: 0
B68: 51 | C68: $200.00 | D68: $11,318.99 | F68: $122.00 | G68: $6,928.95 | H68: 0 | I68: $45.00 | J68: $1,312.39 | K68: 0 | L68: $30.00 | M68: $874.93 | N68: 0 | O68: 0 | P68: 0 | Q68: 0 | R68: 0 | S68: 0 | T68: 0 | U68: 0 | V68: 0 | W68: 0 | X68: 0 | Y68: 0 | Z68: 0
B69: 52 | C69: $200.00 | D69: $11,230.18 | F69: $122.00 | G69: $6,858.00 | H69: 0 | I69: $45.00 | J69: $1,274.57 | K69: 0 | L69: $30.00 | M69: $849.71 | N69: 0 | O69: 0 | P69: 0 | Q69: 0 | R69: 0 | S69: 0 | T69: 0 | U69: 0 | V69: 0 | W69: 0 | X69: 0 | Y69: 0 | Z69: 0
B70: 53 | C70: $200.00 | D70: $11,140.48 | F70: $122.00 | G70: $6,786.52 | H70: 0 | I70: $45.00 | J70: $1,236.54 | K70: 0 | L70: $30.00 | M70: $824.36 | N70: 0 | O70: 0 | P70: 0 | Q70: 0 | R70: 0 | S70: 0 | T70: 0 | U70: 0 | V70: 0 | W70: 0 | X70: 0 | Y70: 0 | Z70: 0
B71: 54 | C71: $200.00 | D71: $11,049.88 | F71: $122.00 | G71: $6,714.50 | H71: 0 | I71: $45.00 | J71: $1,198.29 | K71: 0 | L71: $30.00 | M71: $798.86 | N71: 0 | O71: 0 | P71: 0 | Q71: 0 | R71: 0 | S71: 0 | T71: 0 | U71: 0 | V71: 0 | W71: 0 | X71: 0 | Y71: 0 | Z71: 0
B72: 55 | C72: $200.00 | D72: $10,958.38 | F72: $122.00 | G72: $6,641.95 | H72: 0 | I72: $45.00 | J72: $1,159.83 | K72: 0 | L72: $30.00 | M72: $773.22 | N72: 0 | O72: 0 | P72: 0 | Q72: 0 | R72: 0 | S72: 0 | T72: 0 | U72: 0 | V72: 0 | W72: 0 | X72: 0 | Y72: 0 | Z72: 0
B73: 56 | C73: $200.00 | D73: $10,865.97 | F73: $122.00 | G73: $6,568.85 | H73: 0 | I73: $45.00 | J73: $1,121.14 | K73: 0 | L73: $30.00 | M73: $747.43 | N73: 0 | O73: 0 | P73: 0 | Q73: 0 | R73: 0 | S73: 0 | T73: 0 | U73: 0 | V73: 0 | W73: 0 | X73: 0 | Y73: 0 | Z73: 0
B74: 57 | C74: $200.00 | D74: $10,772.63 | F74: $122.00 | G74: $6,495.20 | H74: 0 | I74: $45.00 | J74: $1,082.24 | K74: 0 | L74: $30.00 | M74: $721.49 | N74: 0 | O74: 0 | P74: 0 | Q74: 0 | R74: 0 | S74: 0 | T74: 0 | U74: 0 | V74: 0 | W74: 0 | X74: 0 | Y74: 0 | Z74: 0
B75: 58 | C75: $200.00 | D75: $10,678.35 | F75: $122.00 | G75: $6,421.00 | H75: 0 | I75: $45.00 | J75: $1,043.12 | K75: 0 | L75: $30.00 | M75: $695.41 | N75: 0 | O75: 0 | P75: 0 | Q75: 0 | R75: 0 | S75: 0 | T75: 0 | U75: 0 | V75: 0 | W75: 0 | X75: 0 | Y75: 0 | Z75: 0
B76: 59 | C76: $200.00 | D76: $10,583.14 | F76: $122.00 | G76: $6,346.24 | H76: 0 | I76: $45.00 | J76: $1,003.78 | K76: 0 | L76: $30.00 | M76: $669.18 | N76: 0 | O76: 0 | P76: 0 | Q76: 0 | R76: 0 | S76: 0 | T76: 0 | U76: 0 | V76: 0 | W76: 0 | X76: 0 | Y76: 0 | Z76: 0
B77: 60 | C77: $200.00 | D77: $10,486.97 | F77: $122.00 | G77: $6,270.92 | H77: 0 | I77: $45.00 | J77: $964.21 | K77: 0 | L77: $30.00 | M77: $642.81 | N77: 0 | O77: 0 | P77: 0 | Q77: 0 | R77: 0 | S77: 0 | T77: 0 | U77: 0 | V77: 0 | W77: 0 | X77: 0 | Y77: 0 | Z77: 0
B78: 61 | C78: $200.00 | D78: $10,389.84 | F78: $122.00 | G78: $6,195.04 | H78: 0 | I78: $45.00 | J78: $924.42 | K78: 0 | L78: $30.00 | M78: $616.28 | N78: 0 | O78: 0 | P78: 0 | Q78: 0 | R78: 0 | S78: 0 | T78: 0 | U78: 0 | V78: 0 | W78: 0 | X78: 0 | Y78: 0 | Z78: 0
B79: 62 | C79: $200.00 | D79: $10,291.74 | F79: $122.00 | G79: $6,118.59 | H79: 0 | I79: $45.00 | J79: $884.40 | K79: 0 | L79: $30.00 | M79: $589.60 | N79: 0 | O79: 0 | P79: 0 | Q79: 0 | R79: 0 | S79: 0 | T79: 0 | U79: 0 | V79: 0 | W79: 0 | X79: 0 | Y79: 0 | Z79: 0
B80: 63 | C80: $200.00 | D80: $10,192.65 | F80: $122.00 | G80: $6,041.56 | H80: 0 | I80: $45.00 | J80: $844.16 | K80: 0 | L80: $30.00 | M80: $562.77 | N80: 0 | O80: 0 | P80: 0 | Q80: 0 | R80: 0 | S80: 0 | T80: 0 | U80: 0 | V80: 0 | W80: 0 | X80: 0 | Y80: 0 | Z80: 0
B81: 64 | C81: $200.00 | D81: $10,092.58 | F81: $122.00 | G81: $5,963.96 | H81: 0 | I81: $45.00 | J81: $803.69 | K81: 0 | L81: $30.00 | M81: $535.79 | N81: 0 | O81: 0 | P81: 0 | Q81: 0 | R81: 0 | S81: 0 | T81: 0 | U81: 0 | V81: 0 | W81: 0 | X81: 0 | Y81: 0 | Z81: 0
B82: 65 | C82: $200.00 | D82: $9,991.51 | F82: $122.00 | G82: $5,885.77 | H82: 0 | I82: $45.00 | J82: $762.99 | K82: 0 | L82: $30.00 | M82: $508.66 | N82: 0 | O82: 0 | P82: 0 | Q82: 0 | R82: 0 | S82: 0 | T82: 0 | U82: 0 | V82: 0 | W82: 0 | X82: 0 | Y82: 0 | Z82: 0
B83: 66 | C83: $200.00 | D83: $9,889.42 | F83: =IF(AND(((G82-$M$3+C83-G$14-D$14-SUM(K83,N83,Q83,T83,W83,Z83))<=0),D83=0),G82,IF(D83=0,$M$3-C83+G$14+D$14+SUM(K83,N83,Q83,T83,W83,Z83),G$14)) -> $122.00 | G83: =IF((G82-F83)<=0.0001,0,(G82-F83)*(1+(G$15/12))) -> $5,807.00 | H83: 0 | I83: =IF(AND(((J82-$M$3+F83+C83-J$14-G$14-D$14-SUM(N83,Q83,T83,W83,Z83))<=0),G83+D83=0),J82,IF(J$14>=J82,J82,IF(AND(G83=0,D83=0),$M$3-F83-C83+J$14+G$14+D$14+SUM(N83,Q83,T83,W83,Z83),J$14))) -> $45.00 | J83: $722.05 | K83: 0 | L83: =IF(AND(((M82-$M$3+I83+F83+C83-M$14-J$14-G$14-D$14-SUM(Q83,T83,W83,Z83))<=0),J83+G83+D83=0),M82,IF(M$14>=M82,M82, IF(AND(J83=0,G83=0,D83=0),$M$3-I83-F83-C83+M$14+J$14+G$14+D$14+SUM(Q83,T83,W83,Z83),M$14))) -> $30.00 | M83: $481.37 | N83: 0 | O83: =IF(AND(((P82-$M$3+L83+I83+F83+C83-P$14-M$14-J$14-G$14-D$14-SUM(T83,W83,Z83))<=0),M83+J83+G83+D83=0),P82,IF(P$14>=P82,P82,IF(AND(M83=0,J83=0,G83=0,D83=0),$M$3-L83-I83-F83-C83+P$14+M$14+J$14+G$14+D$14+SUM(T83,W83,Z83),P$14))) -> 0 | P83: 0 | Q83: 0 | R83: =IF(AND(((S82-$M$3+O83+L83+I83+F83+C83-S$14-P$14-M$14-J$14-G$14-D$14-SUM(W83,Z83))<=0),P83+M83+J83+G83+D83=0),S82,IF(S$14>=S82,S82,IF(AND(P83=0,M83=0,J83=0,G83=0),$M$3-O83-L83-I83-F83-C83+S$14+P$14+M$14+J$14+G$14+D$14+SUM(W83,Z83),S$14))) -> 0 | S83: 0 | T83: 0 | U83: =IF(AND(((V82-$M$3+R83+O83+L83+I83+F83+C83-V$14-S$14-P$14-M$14-J$14-G$14-D$14-SUM(Z83))<=0),S83+P83+M83+J83+G83+D83=0),V82,IF(V$14>=V82,V82,IF(AND(S83=0,P83=0,M83=0,J83=0,G83=0,D83=0),$M$3-R83-O83-L83-I83-F83-C83+V$14+S$14+P$14+M$14+J$14+G$14+D$14+SUM(Z83),V$14))) -> 0 | V83: 0 | W83: 0 | X83: =IF(AND(((Y82-$M$3+U83+R83+O83+L83+I83+F83+C83-Y$14-V$14-S$14-P$14-M$14-J$14-G$14-D$14)<=0),V83+S83+P83+M83+J83+G83+D83=0),Y82,IF(Y$14>=Y82,Y82,IF(AND(V83=0,S83=0,P83=0,M83=0,J83=0,G83=0,D83=0),$M$3-U83-R83-O83-L83-I83-F83-C83+Y$14+V$14+S$14+P$14+M$14+J$14+G$14+D$14,Y$14))) -> 0 | Y83: 0 | Z83: 0
B84: 67 | C84: =IF((D83-$M$3-$D$14-SUM(H84,K84,N84,Q84,T84,W84,Z84))<=0,($M$3+(D83-$M$3)),($M$3+$D$14+SUM(H84,K84,N84,Q84,T84,W84,Z84))) -> $200.00 | D84: $9,786.32 | F84: $122.00 | G84: $5,727.64 | H84: 0 | I84: $45.00 | J84: =IF((J83-I84)<=0.0001,0,(J83-I84)*(1+(J$15/12))) -> $680.89 | K84: 0 | L84: $30.00 | M84: =IF((M83-L84)<=0.0001,0,(M83-L84)*(1+(M$15/12))) -> $453.93 | N84: 0 | O84: 0 | P84: =IF((P83-O84)<=0.0001,0,(P83-O84)*(1+(P$15/12))) -> 0 | Q84: 0 | R84: 0 | S84: 0 | T84: 0 | U84: 0 | V84: =IF((V83-U84)<=0.0001,0,(V83-U84)*(1+(V$15/12))) -> 0 | W84: 0 | X84: 0 | Y84: =IF((Y83-X84)<=0.0001,0,(Y83-X84)*(1+(Y$15/12))) -> 0 | Z84: 0
B85: 68 | C85: $200.00 | D85: $9,682.18 | F85: $122.00 | G85: $5,647.68 | H85: =IF(G84=0,G$14,0) -> 0 | I85: $45.00 | J85: $639.49 | K85: =IF(J84=0,J$14,0) -> 0 | L85: $30.00 | M85: $426.33 | N85: =IF(M84=0,M$14,0) -> 0 | O85: 0 | P85: 0 | Q85: =IF(P84=0,P$14,0) -> 0 | R85: 0 | S85: =IF((S84-R85)<=0.0001,0,(S84-R85)*(1+(S$15/12))) -> 0 | T85: =IF(S84=0,S$14,0) -> 0 | U85: 0 | V85: 0 | W85: =IF(V84=0,V$14,0) -> 0 | X85: 0 | Y85: 0 | Z85: =IF(Y84=0,Y$14,0) -> 0
B86: 69 | C86: $200.00 | D86: =IF((D85-C86)<=0.0001,0,(D85-C86)*(1+(D$15/12))) -> $9,577.00 | F86: $122.00 | G86: $5,567.12 | H86: 0 | I86: $45.00 | J86: $597.86 | K86: 0 | L86: $30.00 | M86: $398.58 | N86: 0 | O86: 0 | P86: 0 | Q86: 0 | R86: 0 | S86: 0 | T86: 0 | U86: 0 | V86: 0 | W86: 0 | X86: 0 | Y86: 0 | Z86: 0
B87: 70 | C87: $200.00 | D87: $9,470.77 | F87: $122.00 | G87: $5,485.96 | H87: 0 | I87: $45.00 | J87: $556.00 | K87: 0 | L87: $30.00 | M87: $370.66 | N87: 0 | O87: 0 | P87: 0 | Q87: 0 | R87: 0 | S87: 0 | T87: 0 | U87: 0 | V87: 0 | W87: 0 | X87: 0 | Y87: 0 | Z87: 0
B88: 71 | C88: $200.00 | D88: $9,363.48 | F88: $122.00 | G88: $5,404.19 | H88: 0 | I88: $45.00 | J88: $513.89 | K88: 0 | L88: $30.00 | M88: $342.59 | N88: 0 | O88: 0 | P88: 0 | Q88: 0 | R88: 0 | S88: 0 | T88: 0 | U88: 0 | V88: 0 | W88: 0 | X88: 0 | Y88: 0 | Z88: 0
B89: 72 | C89: $200.00 | D89: $9,255.11 | F89: $122.00 | G89: $5,321.81 | H89: 0 | I89: $45.00 | J89: $471.55 | K89: 0 | L89: $30.00 | M89: $314.37 | N89: 0 | O89: 0 | P89: 0 | Q89: 0 | R89: 0 | S89: 0 | T89: 0 | U89: 0 | V89: 0 | W89: 0 | X89: 0 | Y89: 0 | Z89: 0
B90: 73 | C90: $200.00 | D90: $9,145.66 | F90: $122.00 | G90: $5,238.81 | H90: 0 | I90: $45.00 | J90: $428.97 | K90: 0 | L90: $30.00 | M90: $285.98 | N90: 0 | O90: 0 | P90: 0 | Q90: 0 | R90: 0 | S90: 0 | T90: 0 | U90: 0 | V90: 0 | W90: 0 | X90: 0 | Y90: 0 | Z90: 0
B91: 74 | C91: $200.00 | D91: $9,035.12 | F91: $122.00 | G91: $5,155.18 | H91: 0 | I91: $45.00 | J91: $386.14 | K91: 0 | L91: $30.00 | M91: $257.43 | N91: 0 | O91: 0 | P91: 0 | Q91: 0 | R91: 0 | S91: 0 | T91: 0 | U91: 0 | V91: 0 | W91: 0 | X91: 0 | Y91: 0 | Z91: 0
B92: 75 | C92: $200.00 | D92: $8,923.47 | F92: $122.00 | G92: $5,070.93 | H92: 0 | I92: $45.00 | J92: $343.07 | K92: 0 | L92: $30.00 | M92: $228.72 | N92: 0 | O92: 0 | P92: 0 | Q92: 0 | R92: 0 | S92: 0 | T92: 0 | U92: 0 | V92: 0 | W92: 0 | X92: 0 | Y92: 0 | Z92: 0
B93: 76 | C93: $200.00 | D93: $8,810.71 | F93: $122.00 | G93: $4,986.05 | H93: 0 | I93: $45.00 | J93: $299.76 | K93: 0 | L93: $30.00 | M93: $199.84 | N93: 0 | O93: 0 | P93: 0 | Q93: 0 | R93: 0 | S93: 0 | T93: 0 | U93: 0 | V93: 0 | W93: 0 | X93: 0 | Y93: 0 | Z93: 0
B94: 77 | C94: $200.00 | D94: $8,696.81 | F94: $122.00 | G94: $4,900.53 | H94: 0 | I94: $45.00 | J94: $256.21 | K94: 0 | L94: $30.00 | M94: $170.80 | N94: 0 | O94: 0 | P94: 0 | Q94: 0 | R94: 0 | S94: 0 | T94: 0 | U94: 0 | V94: 0 | W94: 0 | X94: 0 | Y94: 0 | Z94: 0
B95: 78 | C95: $200.00 | D95: $8,581.78 | F95: $122.00 | G95: $4,814.37 | H95: 0 | I95: $45.00 | J95: $212.40 | K95: 0 | L95: $30.00 | M95: $141.60 | N95: 0 | O95: 0 | P95: 0 | Q95: 0 | R95: 0 | S95: 0 | T95: 0 | U95: 0 | V95: 0 | W95: 0 | X95: 0 | Y95: 0 | Z95: 0
B96: 79 | C96: $200.00 | D96: $8,465.60 | F96: $122.00 | G96: $4,727.56 | H96: 0 | I96: $45.00 | J96: $168.35 | K96: 0 | L96: $30.00 | M96: $112.24 | N96: 0 | O96: 0 | P96: 0 | Q96: 0 | R96: 0 | S96: 0 | T96: 0 | U96: 0 | V96: 0 | W96: 0 | X96: 0 | Y96: 0 | Z96: 0
B97: 80 | C97: $200.00 | D97: $8,348.26 | F97: $122.00 | G97: $4,640.10 | H97: 0 | I97: $45.00 | J97: $124.05 | K97: 0 | L97: $30.00 | M97: $82.70 | N97: 0 | O97: 0 | P97: 0 | Q97: 0 | R97: 0 | S97: 0 | T97: 0 | U97: 0 | V97: 0 | W97: 0 | X97: 0 | Y97: 0 | Z97: 0
B98: 81 | C98: $200.00 | D98: $8,229.74 | F98: $122.00 | G98: $4,551.99 | H98: 0 | I98: $45.00 | J98: $79.50 | K98: 0 | L98: $30.00 | M98: $53.00 | N98: 0 | O98: 0 | P98: 0 | Q98: 0 | R98: 0 | S98: 0 | T98: 0 | U98: 0 | V98: 0 | W98: 0 | X98: 0 | Y98: 0 | Z98: 0
B99: 82 | C99: $200.00 | D99: $8,110.04 | F99: $122.00 | G99: $4,463.21 | H99: 0 | I99: $45.00 | J99: $34.70 | K99: 0 | L99: $30.00 | M99: $23.13 | N99: 0 | O99: 0 | P99: 0 | Q99: 0 | R99: 0 | S99: 0 | T99: 0 | U99: 0 | V99: 0 | W99: 0 | X99: 0 | Y99: 0 | Z99: 0
B100: 83 | C100: $200.00 | D100: $7,989.14 | F100: $122.00 | G100: $4,373.77 | H100: 0 | I100: $34.70 | J100: 0 | K100: 0 | L100: $23.13 | M100: 0 | N100: 0 | O100: 0 | P100: 0 | Q100: 0 | R100: 0 | S100: 0 | T100: 0 | U100: 0 | V100: 0 | W100: 0 | X100: 0 | Y100: 0 | Z100: 0
B101: 84 | C101: $275.00 | D101: $7,791.28 | F101: $122.00 | G101: $4,283.66 | H101: 0 | I101: 0 | J101: 0 | K101: $45.00 | L101: 0 | M101: 0 | N101: $30.00 | O101: 0 | P101: 0 | Q101: 0 | R101: 0 | S101: 0 | T101: 0 | U101: 0 | V101: 0 | W101: 0 | X101: 0 | Y101: 0 | Z101: 0
B102: 85 | C102: $275.00 | D102: $7,591.44 | F102: $122.00 | G102: $4,192.87 | H102: 0 | I102: 0 | J102: 0 | K102: $45.00 | L102: 0 | M102: 0 | N102: $30.00 | O102: 0 | P102: 0 | Q102: 0 | R102: 0 | S102: 0 | T102: 0 | U102: 0 | V102: 0 | W102: 0 | X102: 0 | Y102: 0 | Z102: 0
B103: 86 | C103: $275.00 | D103: $7,389.60 | F103: $122.00 | G103: $4,101.40 | H103: 0 | I103: 0 | J103: 0 | K103: $45.00 | L103: 0 | M103: 0 | N103: $30.00 | O103: 0 | P103: 0 | Q103: 0 | R103: 0 | S103: 0 | T103: 0 | U103: 0 | V103: 0 | W103: 0 | X103: 0 | Y103: 0 | Z103: 0
B104: 87 | C104: $275.00 | D104: $7,185.75 | F104: $122.00 | G104: $4,009.25 | H104: 0 | I104: 0 | J104: 0 | K104: $45.00 | L104: 0 | M104: 0 | N104: $30.00 | O104: 0 | P104: 0 | Q104: 0 | R104: 0 | S104: 0 | T104: 0 | U104: 0 | V104: 0 | W104: 0 | X104: 0 | Y104: 0 | Z104: 0
B105: 88 | C105: $275.00 | D105: $6,979.86 | F105: $122.00 | G105: $3,916.40 | H105: 0 | I105: 0 | J105: 0 | K105: $45.00 | L105: 0 | M105: 0 | N105: $30.00 | O105: 0 | P105: 0 | Q105: 0 | R105: 0 | S105: 0 | T105: 0 | U105: 0 | V105: 0 | W105: 0 | X105: 0 | Y105: 0 | Z105: 0
B106: 89 | C106: $275.00 | D106: $6,771.91 | F106: $122.00 | G106: $3,822.86 | H106: 0 | I106: 0 | J106: 0 | K106: $45.00 | L106: 0 | M106: 0 | N106: $30.00 | O106: 0 | P106: 0 | Q106: 0 | R106: 0 | S106: 0 | T106: 0 | U106: 0 | V106: 0 | W106: 0 | X106: 0 | Y106: 0 | Z106: 0
B107: 90 | C107: $275.00 | D107: $6,561.88 | F107: $122.00 | G107: $3,728.62 | H107: 0 | I107: 0 | J107: 0 | K107: $45.00 | L107: 0 | M107: 0 | N107: $30.00 | O107: 0 | P107: 0 | Q107: 0 | R107: 0 | S107: 0 | T107: 0 | U107: 0 | V107: 0 | W107: 0 | X107: 0 | Y107: 0 | Z107: 0
B108: 91 | C108: $275.00 | D108: $6,349.74 | F108: $122.00 | G108: $3,633.67 | H108: 0 | I108: 0 | J108: 0 | K108: $45.00 | L108: 0 | M108: 0 | N108: $30.00 | O108: 0 | P108: 0 | Q108: 0 | R108: 0 | S108: 0 | T108: 0 | U108: 0 | V108: 0 | W108: 0 | X108: 0 | Y108: 0 | Z108: 0
B109: 92 | C109: $275.00 | D109: $6,135.49 | F109: $122.00 | G109: $3,538.01 | H109: 0 | I109: 0 | J109: 0 | K109: $45.00 | L109: 0 | M109: 0 | N109: $30.00 | O109: 0 | P109: 0 | Q109: 0 | R109: 0 | S109: 0 | T109: 0 | U109: 0 | V109: 0 | W109: 0 | X109: 0 | Y109: 0 | Z109: 0
B110: 93 | C110: $275.00 | D110: $5,919.10 | F110: $122.00 | G110: $3,441.63 | H110: 0 | I110: 0 | J110: 0 | K110: $45.00 | L110: 0 | M110: 0 | N110: $30.00 | O110: 0 | P110: 0 | Q110: 0 | R110: 0 | S110: 0 | T110: 0 | U110: 0 | V110: 0 | W110: 0 | X110: 0 | Y110: 0 | Z110: 0
B111: 94 | C111: $275.00 | D111: $5,700.54 | F111: $122.00 | G111: $3,344.52 | H111: 0 | I111: 0 | J111: 0 | K111: $45.00 | L111: 0 | M111: 0 | N111: $30.00 | O111: 0 | P111: 0 | Q111: 0 | R111: 0 | S111: 0 | T111: 0 | U111: 0 | V111: 0 | W111: 0 | X111: 0 | Y111: 0 | Z111: 0
B112: 95 | C112: $275.00 | D112: $5,479.79 | F112: $122.00 | G112: $3,246.69 | H112: 0 | I112: 0 | J112: 0 | K112: $45.00 | L112: 0 | M112: 0 | N112: $30.00 | O112: 0 | P112: 0 | Q112: 0 | R112: 0 | S112: 0 | T112: 0 | U112: 0 | V112: 0 | W112: 0 | X112: 0 | Y112: 0 | Z112: 0
B113: 96 | C113: $275.00 | D113: $5,256.84 | F113: $122.00 | G113: $3,148.13 | H113: 0 | I113: 0 | J113: 0 | K113: $45.00 | L113: 0 | M113: 0 | N113: $30.00 | O113: 0 | P113: 0 | Q113: 0 | R113: 0 | S113: 0 | T113: 0 | U113: 0 | V113: 0 | W113: 0 | X113: 0 | Y113: 0 | Z113: 0
B114: 97 | C114: $275.00 | D114: $5,031.66 | F114: $122.00 | G114: $3,048.82 | H114: 0 | I114: 0 | J114: 0 | K114: $45.00 | L114: 0 | M114: 0 | N114: $30.00 | O114: 0 | P114: 0 | Q114: 0 | R114: 0 | S114: 0 | T114: 0 | U114: 0 | V114: 0 | W114: 0 | X114: 0 | Y114: 0 | Z114: 0
B115: 98 | C115: $275.00 | D115: $4,804.23 | F115: =IF(AND(((G114-$M$3+C115-G$14-D$14-SUM(K115,N115,Q115,T115,W115,Z115))<=0),D115=0),G114,IF(D115=0,$M$3-C115+G$14+D$14+SUM(K115,N115,Q115,T115,W115,Z115),G$14)) -> $122.00 | G115: $2,948.77 | H115: 0 | I115: =IF(AND(((J114-$M$3+F115+C115-J$14-G$14-D$14-SUM(N115,Q115,T115,W115,Z115))<=0),G115+D115=0),J114,IF(J$14>=J114,J114,IF(AND(G115=0,D115=0),$M$3-F115-C115+J$14+G$14+D$14+SUM(N115,Q115,T115,W115,Z115),J$14))) -> 0 | J115: 0 | K115: $45.00 | L115: =IF(AND(((M114-$M$3+I115+F115+C115-M$14-J$14-G$14-D$14-SUM(Q115,T115,W115,Z115))<=0),J115+G115+D115=0),M114,IF(M$14>=M114,M114, IF(AND(J115=0,G115=0,D115=0),$M$3-I115-F115-C115+M$14+J$14+G$14+D$14+SUM(Q115,T115,W115,Z115),M$14))) -> 0 | M115: 0 | N115: $30.00 | O115: =IF(AND(((P114-$M$3+L115+I115+F115+C115-P$14-M$14-J$14-G$14-D$14-SUM(T115,W115,Z115))<=0),M115+J115+G115+D115=0),P114,IF(P$14>=P114,P114,IF(AND(M115=0,J115=0,G115=0,D115=0),$M$3-L115-I115-F115-C115+P$14+M$14+J$14+G$14+D$14+SUM(T115,W115,Z115),P$14))) -> 0 | P115: 0 | Q115: 0 | R115: =IF(AND(((S114-$M$3+O115+L115+I115+F115+C115-S$14-P$14-M$14-J$14-G$14-D$14-SUM(W115,Z115))<=0),P115+M115+J115+G115+D115=0),S114,IF(S$14>=S114,S114,IF(AND(P115=0,M115=0,J115=0,G115=0),$M$3-O115-L115-I115-F115-C115+S$14+P$14+M$14+J$14+G$14+D$14+SUM(W115,Z115),S$14))) -> 0 | S115: 0 | T115: 0 | U115: =IF(AND(((V114-$M$3+R115+O115+L115+I115+F115+C115-V$14-S$14-P$14-M$14-J$14-G$14-D$14-SUM(Z115))<=0),S115+P115+M115+J115+G115+D115=0),V114,IF(V$14>=V114,V114,IF(AND(S115=0,P115=0,M115=0,J115=0,G115=0,D115=0),$M$3-R115-O115-L115-I115-F115-C115+V$14+S$14+P$14+M$14+J$14+G$14+D$14+SUM(Z115),V$14))) -> 0 | V115: 0 | W115: 0 | X115: =IF(AND(((Y114-$M$3+U115+R115+O115+L115+I115+F115+C115-Y$14-V$14-S$14-P$14-M$14-J$14-G$14-D$14)<=0),V115+S115+P115+M115+J115+G115+D115=0),Y114,IF(Y$14>=Y114,Y114,IF(AND(V115=0,S115=0,P115=0,M115=0,J115=0,G115=0,D115=0),$M$3-U115-R115-O115-L115-I115-F115-C115+Y$14+V$14+S$14+P$14+M$14+J$14+G$14+D$14,Y$14))) -> 0 | Y115: 0 | Z115: 0
B116: 99 | C116: $275.00 | D116: $4,574.52 | F116: $122.00 | G116: $2,847.98 | H116: 0 | I116: 0 | J116: 0 | K116: $45.00 | L116: 0 | M116: 0 | N116: $30.00 | O116: 0 | P116: 0 | Q116: 0 | R116: 0 | S116: 0 | T116: 0 | U116: 0 | V116: 0 | W116: 0 | X116: 0 | Y116: 0 | Z116: 0
B117: 100 | C117: $275.00 | D117: $4,342.51 | F117: $122.00 | G117: $2,746.42 | H117: 0 | I117: 0 | J117: 0 | K117: $45.00 | L117: 0 | M117: 0 | N117: $30.00 | O117: 0 | P117: 0 | Q117: 0 | R117: 0 | S117: 0 | T117: 0 | U117: 0 | V117: 0 | W117: 0 | X117: 0 | Y117: 0 | Z117: 0
B118: 101 | C118: $275.00 | D118: $4,108.19 | F118: $122.00 | G118: $2,644.10 | H118: 0 | I118: 0 | J118: 0 | K118: $45.00 | L118: 0 | M118: 0 | N118: $30.00 | O118: 0 | P118: 0 | Q118: 0 | R118: 0 | S118: 0 | T118: 0 | U118: 0 | V118: 0 | W118: 0 | X118: 0 | Y118: 0 | Z118: 0
B119: 102 | C119: $275.00 | D119: $3,871.52 | F119: $122.00 | G119: $2,541.02 | H119: 0 | I119: 0 | J119: 0 | K119: $45.00 | L119: 0 | M119: 0 | N119: $30.00 | O119: 0 | P119: 0 | Q119: 0 | R119: 0 | S119: 0 | T119: 0 | U119: 0 | V119: 0 | W119: 0 | X119: 0 | Y119: 0 | Z119: 0
B120: 103 | C120: $275.00 | D120: $3,632.49 | F120: $122.00 | G120: $2,437.16 | H120: 0 | I120: 0 | J120: 0 | K120: $45.00 | L120: 0 | M120: 0 | N120: $30.00 | O120: 0 | P120: 0 | Q120: 0 | R120: 0 | S120: 0 | T120: 0 | U120: 0 | V120: 0 | W120: 0 | X120: 0 | Y120: 0 | Z120: 0
B121: 104 | C121: $275.00 | D121: $3,391.06 | F121: $122.00 | G121: $2,332.53 | H121: 0 | I121: 0 | J121: 0 | K121: $45.00 | L121: 0 | M121: 0 | N121: $30.00 | O121: 0 | P121: 0 | Q121: 0 | R121: 0 | S121: 0 | T121: 0 | U121: 0 | V121: 0 | W121: 0 | X121: 0 | Y121: 0 | Z121: 0
B122: 105 | C122: $275.00 | D122: $3,147.22 | F122: $122.00 | G122: $2,227.10 | H122: 0 | I122: 0 | J122: 0 | K122: $45.00 | L122: 0 | M122: 0 | N122: $30.00 | O122: 0 | P122: 0 | Q122: 0 | R122: 0 | S122: 0 | T122: 0 | U122: 0 | V122: 0 | W122: 0 | X122: 0 | Y122: 0 | Z122: 0
B123: 106 | C123: $275.00 | D123: $2,900.94 | F123: $122.00 | G123: $2,120.89 | H123: 0 | I123: 0 | J123: 0 | K123: $45.00 | L123: 0 | M123: 0 | N123: $30.00 | O123: 0 | P123: 0 | Q123: 0 | R123: 0 | S123: 0 | T123: 0 | U123: 0 | V123: 0 | W123: 0 | X123: 0 | Y123: 0 | Z123: 0
B124: 107 | C124: $275.00 | D124: $2,652.20 | F124: $122.00 | G124: $2,013.88 | H124: 0 | I124: 0 | J124: 0 | K124: $45.00 | L124: 0 | M124: 0 | N124: $30.00 | O124: 0 | P124: 0 | Q124: 0 | R124: 0 | S124: 0 | T124: 0 | U124: 0 | V124: 0 | W124: 0 | X124: 0 | Y124: 0 | Z124: 0
B125: 108 | C125: $275.00 | D125: $2,400.97 | F125: $122.00 | G125: $1,906.07 | H125: 0 | I125: 0 | J125: 0 | K125: $45.00 | L125: 0 | M125: 0 | N125: $30.00 | O125: 0 | P125: 0 | Q125: 0 | R125: 0 | S125: 0 | T125: 0 | U125: 0 | V125: 0 | W125: 0 | X125: 0 | Y125: 0 | Z125: 0
B126: 109 | C126: $275.00 | D126: $2,147.23 | F126: $122.00 | G126: $1,797.45 | H126: 0 | I126: 0 | J126: 0 | K126: $45.00 | L126: 0 | M126: 0 | N126: $30.00 | O126: 0 | P126: 0 | Q126: 0 | R126: 0 | S126: 0 | T126: 0 | U126: 0 | V126: 0 | W126: 0 | X126: 0 | Y126: 0 | Z126: 0
B127: 110 | C127: $275.00 | D127: $1,890.96 | F127: $122.00 | G127: $1,688.02 | H127: 0 | I127: 0 | J127: 0 | K127: $45.00 | L127: 0 | M127: 0 | N127: $30.00 | O127: 0 | P127: 0 | Q127: 0 | R127: 0 | S127: 0 | T127: 0 | U127: 0 | V127: 0 | W127: 0 | X127: 0 | Y127: 0 | Z127: 0
B128: 111 | C128: $275.00 | D128: $1,632.12 | F128: $122.00 | G128: $1,577.77 | H128: 0 | I128: 0 | J128: 0 | K128: $45.00 | L128: 0 | M128: 0 | N128: $30.00 | O128: 0 | P128: 0 | Q128: 0 | R128: 0 | S128: 0 | T128: 0 | U128: 0 | V128: 0 | W128: 0 | X128: 0 | Y128: 0 | Z128: 0
B129: 112 | C129: $275.00 | D129: $1,370.69 | F129: $122.00 | G129: $1,466.68 | H129: 0 | I129: 0 | J129: 0 | K129: $45.00 | L129: 0 | M129: 0 | N129: $30.00 | O129: 0 | P129: 0 | Q129: 0 | R129: 0 | S129: 0 | T129: 0 | U129: 0 | V129: 0 | W129: 0 | X129: 0 | Y129: 0 | Z129: 0
B130: 113 | C130: $275.00 | D130: $1,106.64 | F130: $122.00 | G130: $1,354.77 | H130: 0 | I130: 0 | J130: 0 | K130: $45.00 | L130: 0 | M130: 0 | N130: $30.00 | O130: 0 | P130: 0 | Q130: 0 | R130: 0 | S130: 0 | T130: 0 | U130: 0 | V130: 0 | W130: 0 | X130: 0 | Y130: 0 | Z130: 0
B131: 114 | C131: $275.00 | D131: $839.96 | F131: $122.00 | G131: $1,242.01 | H131: 0 | I131: 0 | J131: 0 | K131: $45.00 | L131: 0 | M131: 0 | N131: $30.00 | O131: 0 | P131: 0 | Q131: 0 | R131: 0 | S131: 0 | T131: 0 | U131: 0 | V131: 0 | W131: 0 | X131: 0 | Y131: 0 | Z131: 0
B132: 115 | C132: $275.00 | D132: $570.61 | F132: $122.00 | G132: $1,128.41 | H132: 0 | I132: 0 | J132: 0 | K132: $45.00 | L132: 0 | M132: 0 | N132: $30.00 | O132: 0 | P132: 0 | Q132: 0 | R132: 0 | S132: 0 | T132: 0 | U132: 0 | V132: 0 | W132: 0 | X132: 0 | Y132: 0 | Z132: 0
B133: 116 | C133: $275.00 | D133: $298.57 | F133: $122.00 | G133: $1,013.96 | H133: 0 | I133: 0 | J133: 0 | K133: $45.00 | L133: 0 | M133: 0 | N133: $30.00 | O133: 0 | P133: 0 | Q133: 0 | R133: 0 | S133: 0 | T133: 0 | U133: 0 | V133: 0 | W133: 0 | X133: 0 | Y133: 0 | Z133: 0
B134: 117 | C134: $275.00 | D134: $23.80 | F134: $122.00 | G134: $898.65 | H134: 0 | I134: 0 | J134: 0 | K134: $45.00 | L134: 0 | M134: 0 | N134: $30.00 | O134: 0 | P134: 0 | Q134: 0 | R134: 0 | S134: 0 | T134: 0 | U134: 0 | V134: 0 | W134: 0 | X134: 0 | Y134: 0 | Z134: 0
B135: 118 | C135: $23.80 | D135: 0 | F135: $373.20 | G135: $529.40 | H135: 0 | I135: 0 | J135: 0 | K135: $45.00 | L135: 0 | M135: 0 | N135: $30.00 | O135: 0 | P135: 0 | Q135: 0 | R135: 0 | S135: 0 | T135: 0 | U135: 0 | V135: 0 | W135: 0 | X135: 0 | Y135: 0 | Z135: 0
B136: 119 | C136: 0 | D136: 0 | F136: $397.00 | G136: $133.39 | H136: 0 | I136: 0 | J136: 0 | K136: $45.00 | L136: 0 | M136: 0 | N136: $30.00 | O136: 0 | P136: 0 | Q136: 0 | R136: 0 | S136: 0 | T136: 0 | U136: 0 | V136: 0 | W136: 0 | X136: 0 | Y136: 0 | Z136: 0
B137: 120 | C137: 0 | D137: 0 | F137: $133.39 | G137: 0 | H137: 0 | I137: 0 | J137: 0 | K137: $45.00 | L137: 0 | M137: 0 | N137: $30.00 | O137: 0 | P137: 0 | Q137: 0 | R137: 0 | S137: 0 | T137: 0 | U137: 0 | V137: 0 | W137: 0 | X137: 0 | Y137: 0 | Z137: 0

Sheet Debt Payoff Chart
C3: Student Loan Payoff Chart | H3: Enter all your numbers in the Student Loan Avalanche Calc tab and then click "Refresh Chart" to the right. | W3: Provided by: LifeAndMyFinances.com
H4: Then, print this sheet, put it on your fridge, and mark how well you're doing vs. your goal! | W4: Copyright 2022
H5: Color in the squares as you go and pay off that debt faster than you planned! Good luck!
C10: Monthly Tracker!
B13: X | C13: Y
A14: Max | B14: =$L$19 -> 120 | C14: =C16*11 -> 33,000.00
A15: Min | B15: 0 | C15: 0
A16: Incre | B16: 1 | C16: =ROUNDUP($J$19/11,-3) -> $3,000.00
I18: Month | J18: Debt Amount | L18: Debt Payoff Month
I19: 0 | J19: =SUM('Student Loan Avalanche Calc'!D13:Y13) -> $30,000.00 | K19: 0 | L19: =VLOOKUP(I19,$J$19:$K$139,2,FALSE) -> 120
I20: 1 | J20: =SUM('Student Loan Avalanche Calc'!D18,'Student Loan Avalanche Calc'!G18,'Student Loan Avalanche Calc'!J18,'Student Loan Avalanche Calc'!M18,'Student Loan Avalanche Calc'!P18,'Student Loan Avalanche Calc'!S18,'Student Loan Avalanche Calc'!V18,'Student Loan Avalanche Calc'!Y18) -> $29,603.00 | K20: 1
I21: 2 | J21: =SUM('Student Loan Avalanche Calc'!D19,'Student Loan Avalanche Calc'!G19,'Student Loan Avalanche Calc'!J19,'Student Loan Avalanche Calc'!M19,'Student Loan Avalanche Calc'!P19,'Student Loan Avalanche Calc'!S19,'Student Loan Avalanche Calc'!V19,'Student Loan Avalanche Calc'!Y19) -> $29,452.65 | K21: 2
I22: 3 | J22: =SUM('Student Loan Avalanche Calc'!D20,'Student Loan Avalanche Calc'!G20,'Student Loan Avalanche Calc'!J20,'Student Loan Avalanche Calc'!M20,'Student Loan Avalanche Calc'!P20,'Student Loan Avalanche Calc'!S20,'Student Loan Avalanche Calc'!V20,'Student Loan Avalanche Calc'!Y20) -> $29,301.13 | K22: 3
I23: 4 | J23: =SUM('Student Loan Avalanche Calc'!D21,'Student Loan Avalanche Calc'!G21,'Student Loan Avalanche Calc'!J21,'Student Loan Avalanche Calc'!M21,'Student Loan Avalanche Calc'!P21,'Student Loan Avalanche Calc'!S21,'Student Loan Avalanche Calc'!V21,'Student Loan Avalanche Calc'!Y21) -> $29,148.42 | K23: 4
I24: 5 | J24: =SUM('Student Loan Avalanche Calc'!D22,'Student Loan Avalanche Calc'!G22,'Student Loan Avalanche Calc'!J22,'Student Loan Avalanche Calc'!M22,'Student Loan Avalanche Calc'!P22,'Student Loan Avalanche Calc'!S22,'Student Loan Avalanche Calc'!V22,'Student Loan Avalanche Calc'!Y22) -> $28,994.52 | K24: 5
I25: 6 | J25: =SUM('Student Loan Avalanche Calc'!D23,'Student Loan Avalanche Calc'!G23,'Student Loan Avalanche Calc'!J23,'Student Loan Avalanche Calc'!M23,'Student Loan Avalanche Calc'!P23,'Student Loan Avalanche Calc'!S23,'Student Loan Avalanche Calc'!V23,'Student Loan Avalanche Calc'!Y23) -> $28,839.41 | K25: 6
I26: 7 | J26: =SUM('Student Loan Avalanche Calc'!D24,'Student Loan Avalanche Calc'!G24,'Student Loan Avalanche Calc'!J24,'Student Loan Avalanche Calc'!M24,'Student Loan Avalanche Calc'!P24,'Student Loan Avalanche Calc'!S24,'Student Loan Avalanche Calc'!V24,'Student Loan Avalanche Calc'!Y24) -> $28,683.09 | K26: 7
I27: 8 | J27: =SUM('Student Loan Avalanche Calc'!D25,'Student Loan Avalanche Calc'!G25,'Student Loan Avalanche Calc'!J25,'Student Loan Avalanche Calc'!M25,'Student Loan Avalanche Calc'!P25,'Student Loan Avalanche Calc'!S25,'Student Loan Avalanche Calc'!V25,'Student Loan Avalanche Calc'!Y25) -> $28,525.55 | K27: 8
I28: 9 | J28: =SUM('Student Loan Avalanche Calc'!D26,'Student Loan Avalanche Calc'!G26,'Student Loan Avalanche Calc'!J26,'Student Loan Avalanche Calc'!M26,'Student Loan Avalanche Calc'!P26,'Student Loan Avalanche Calc'!S26,'Student Loan Avalanche Calc'!V26,'Student Loan Avalanche Calc'!Y26) -> $28,366.77 | K28: 9
I29: 10 | J29: =SUM('Student Loan Avalanche Calc'!D27,'Student Loan Avalanche Calc'!G27,'Student Loan Avalanche Calc'!J27,'Student Loan Avalanche Calc'!M27,'Student Loan Avalanche Calc'!P27,'Student Loan Avalanche Calc'!S27,'Student Loan Avalanche Calc'!V27,'Student Loan Avalanche Calc'!Y27) -> $28,206.74 | K29: 10
I30: 11 | J30: =SUM('Student Loan Avalanche Calc'!D28,'Student Loan Avalanche Calc'!G28,'Student Loan Avalanche Calc'!J28,'Student Loan Avalanche Calc'!M28,'Student Loan Avalanche Calc'!P28,'Student Loan Avalanche Calc'!S28,'Student Loan Avalanche Calc'!V28,'Student Loan Avalanche Calc'!Y28) -> $28,045.46 | K30: 11
I31: 12 | J31: =SUM('Student Loan Avalanche Calc'!D29,'Student Loan Avalanche Calc'!G29,'Student Loan Avalanche Calc'!J29,'Student Loan Avalanche Calc'!M29,'Student Loan Avalanche Calc'!P29,'Student Loan Avalanche Calc'!S29,'Student Loan Avalanche Calc'!V29,'Student Loan Avalanche Calc'!Y29) -> $27,882.91 | K31: 12 | L31: Month
I32: 13 | J32: =SUM('Student Loan Avalanche Calc'!D30,'Student Loan Avalanche Calc'!G30,'Student Loan Avalanche Calc'!J30,'Student Loan Avalanche Calc'!M30,'Student Loan Avalanche Calc'!P30,'Student Loan Avalanche Calc'!S30,'Student Loan Avalanche Calc'!V30,'Student Loan Avalanche Calc'!Y30) -> $27,719.09 | K32: 13
I33: 14 | J33: =SUM('Student Loan Avalanche Calc'!D31,'Student Loan Avalanche Calc'!G31,'Student Loan Avalanche Calc'!J31,'Student Loan Avalanche Calc'!M31,'Student Loan Avalanche Calc'!P31,'Student Loan Avalanche Calc'!S31,'Student Loan Avalanche Calc'!V31,'Student Loan Avalanche Calc'!Y31) -> $27,553.98 | K33: 14
I34: 15 | J34: =SUM('Student Loan Avalanche Calc'!D32,'Student Loan Avalanche Calc'!G32,'Student Loan Avalanche Calc'!J32,'Student Loan Avalanche Calc'!M32,'Student Loan Avalanche Calc'!P32,'Student Loan Avalanche Calc'!S32,'Student Loan Avalanche Calc'!V32,'Student Loan Avalanche Calc'!Y32) -> $27,387.57 | K34: 15
I35: 16 | J35: =SUM('Student Loan Avalanche Calc'!D33,'Student Loan Avalanche Calc'!G33,'Student Loan Avalanche Calc'!J33,'Student Loan Avalanche Calc'!M33,'Student Loan Avalanche Calc'!P33,'Student Loan Avalanche Calc'!S33,'Student Loan Avalanche Calc'!V33,'Student Loan Avalanche Calc'!Y33) -> $27,219.86 | K35: 16
I36: 17 | J36: =SUM('Student Loan Avalanche Calc'!D34,'Student Loan Avalanche Calc'!G34,'Student Loan Avalanche Calc'!J34,'Student Loan Avalanche Calc'!M34,'Student Loan Avalanche Calc'!P34,'Student Loan Avalanche Calc'!S34,'Student Loan Avalanche Calc'!V34,'Student Loan Avalanche Calc'!Y34) -> $27,050.82 | K36: 17
I37: 18 | J37: =SUM('Student Loan Avalanche Calc'!D35,'Student Loan Avalanche Calc'!G35,'Student Loan Avalanche Calc'!J35,'Student Loan Avalanche Calc'!M35,'Student Loan Avalanche Calc'!P35,'Student Loan Avalanche Calc'!S35,'Student Loan Avalanche Calc'!V35,'Student Loan Avalanche Calc'!Y35) -> $26,880.46 | K37: 18 | L37: Month
I38: 19 | J38: =SUM('Student Loan Avalanche Calc'!D36,'Student Loan Avalanche Calc'!G36,'Student Loan Avalanche Calc'!J36,'Student Loan Avalanche Calc'!M36,'Student Loan Avalanche Calc'!P36,'Student Loan Avalanche Calc'!S36,'Student Loan Avalanche Calc'!V36,'Student Loan Avalanche Calc'!Y36) -> $26,708.76 | K38: 19
I39: 20 | J39: =SUM('Student Loan Avalanche Calc'!D37,'Student Loan Avalanche Calc'!G37,'Student Loan Avalanche Calc'!J37,'Student Loan Avalanche Calc'!M37,'Student Loan Avalanche Calc'!P37,'Student Loan Avalanche Calc'!S37,'Student Loan Avalanche Calc'!V37,'Student Loan Avalanche Calc'!Y37) -> $26,535.70 | K39: 20
I40: 21 | J40: =SUM('Student Loan Avalanche Calc'!D38,'Student Loan Avalanche Calc'!G38,'Student Loan Avalanche Calc'!J38,'Student Loan Avalanche Calc'!M38,'Student Loan Avalanche Calc'!P38,'Student Loan Avalanche Calc'!S38,'Student Loan Avalanche Calc'!V38,'Student Loan Avalanche Calc'!Y38) -> $26,361.28 | K40: 21
I41: 22 | J41: =SUM('Student Loan Avalanche Calc'!D39,'Student Loan Avalanche Calc'!G39,'Student Loan Avalanche Calc'!J39,'Student Loan Avalanche Calc'!M39,'Student Loan Avalanche Calc'!P39,'Student Loan Avalanche Calc'!S39,'Student Loan Avalanche Calc'!V39,'Student Loan Avalanche Calc'!Y39) -> $26,185.49 | K41: 22
I42: 23 | J42: =SUM('Student Loan Avalanche Calc'!D40,'Student Loan Avalanche Calc'!G40,'Student Loan Avalanche Calc'!J40,'Student Loan Avalanche Calc'!M40,'Student Loan Avalanche Calc'!P40,'Student Loan Avalanche Calc'!S40,'Student Loan Avalanche Calc'!V40,'Student Loan Avalanche Calc'!Y40) -> $26,008.31 | K42: 23
I43: 24 | J43: =SUM('Student Loan Avalanche Calc'!D41,'Student Loan Avalanche Calc'!G41,'Student Loan Avalanche Calc'!J41,'Student Loan Avalanche Calc'!M41,'Student Loan Avalanche Calc'!P41,'Student Loan Avalanche Calc'!S41,'Student Loan Avalanche Calc'!V41,'Student Loan Avalanche Calc'!Y41) -> $25,829.74 | K43: 24
I44: 25 | J44: =SUM('Student Loan Avalanche Calc'!D42,'Student Loan Avalanche Calc'!G42,'Student Loan Avalanche Calc'!J42,'Student Loan Avalanche Calc'!M42,'Student Loan Avalanche Calc'!P42,'Student Loan Avalanche Calc'!S42,'Student Loan Avalanche Calc'!V42,'Student Loan Avalanche Calc'!Y42) -> $25,649.75 | K44: 25
I45: 26 | J45: =SUM('Student Loan Avalanche Calc'!D43,'Student Loan Avalanche Calc'!G43,'Student Loan Avalanche Calc'!J43,'Student Loan Avalanche Calc'!M43,'Student Loan Avalanche Calc'!P43,'Student Loan Avalanche Calc'!S43,'Student Loan Avalanche Calc'!V43,'Student Loan Avalanche Calc'!Y43) -> $25,468.35 | K45: 26
I46: 27 | J46: =SUM('Student Loan Avalanche Calc'!D44,'Student Loan Avalanche Calc'!G44,'Student Loan Avalanche Calc'!J44,'Student Loan Avalanche Calc'!M44,'Student Loan Avalanche Calc'!P44,'Student Loan Avalanche Calc'!S44,'Student Loan Avalanche Calc'!V44,'Student Loan Avalanche Calc'!Y44) -> $25,285.51 | K46: 27
I47: 28 | J47: =SUM('Student Loan Avalanche Calc'!D45,'Student Loan Avalanche Calc'!G45,'Student Loan Avalanche Calc'!J45,'Student Loan Avalanche Calc'!M45,'Student Loan Avalanche Calc'!P45,'Student Loan Avalanche Calc'!S45,'Student Loan Avalanche Calc'!V45,'Student Loan Avalanche Calc'!Y45) -> $25,101.23 | K47: 28
I48: 29 | J48: =SUM('Student Loan Avalanche Calc'!D46,'Student Loan Avalanche Calc'!G46,'Student Loan Avalanche Calc'!J46,'Student Loan Avalanche Calc'!M46,'Student Loan Avalanche Calc'!P46,'Student Loan Avalanche Calc'!S46,'Student Loan Avalanche Calc'!V46,'Student Loan Avalanche Calc'!Y46) -> $24,915.49 | K48: 29
I49: 30 | J49: =SUM('Student Loan Avalanche Calc'!D47,'Student Loan Avalanche Calc'!G47,'Student Loan Avalanche Calc'!J47,'Student Loan Avalanche Calc'!M47,'Student Loan Avalanche Calc'!P47,'Student Loan Avalanche Calc'!S47,'Student Loan Avalanche Calc'!V47,'Student Loan Avalanche Calc'!Y47) -> $24,728.29 | K49: 30
I50: 31 | J50: =SUM('Student Loan Avalanche Calc'!D48,'Student Loan Avalanche Calc'!G48,'Student Loan Avalanche Calc'!J48,'Student Loan Avalanche Calc'!M48,'Student Loan Avalanche Calc'!P48,'Student Loan Avalanche Calc'!S48,'Student Loan Avalanche Calc'!V48,'Student Loan Avalanche Calc'!Y48) -> $24,539.60 | K50: 31
I51: 32 | J51: =SUM('Student Loan Avalanche Calc'!D49,'Student Loan Avalanche Calc'!G49,'Student Loan Avalanche Calc'!J49,'Student Loan Avalanche Calc'!M49,'Student Loan Avalanche Calc'!P49,'Student Loan Avalanche Calc'!S49,'Student Loan Avalanche Calc'!V49,'Student Loan Avalanche Calc'!Y49) -> $24,349.42 | K51: 32
I52: 33 | J52: =SUM('Student Loan Avalanche Calc'!D50,'Student Loan Avalanche Calc'!G50,'Student Loan Avalanche Calc'!J50,'Student Loan Avalanche Calc'!M50,'Student Loan Avalanche Calc'!P50,'Student Loan Avalanche Calc'!S50,'Student Loan Avalanche Calc'!V50,'Student Loan Avalanche Calc'!Y50) -> $24,157.74 | K52: 33
I53: 34 | J53: =SUM('Student Loan Avalanche Calc'!D51,'Student Loan Avalanche Calc'!G51,'Student Loan Avalanche Calc'!J51,'Student Loan Avalanche Calc'!M51,'Student Loan Avalanche Calc'!P51,'Student Loan Avalanche Calc'!S51,'Student Loan Avalanche Calc'!V51,'Student Loan Avalanche Calc'!Y51) -> $23,964.54 | K53: 34
I54: 35 | J54: =SUM('Student Loan Avalanche Calc'!D52,'Student Loan Avalanche Calc'!G52,'Student Loan Avalanche Calc'!J52,'Student Loan Avalanche Calc'!M52,'Student Loan Avalanche Calc'!P52,'Student Loan Avalanche Calc'!S52,'Student Loan Avalanche Calc'!V52,'Student Loan Avalanche Calc'!Y52) -> $23,769.81 | K54: 35
I55: 36 | J55: =SUM('Student Loan Avalanche Calc'!D53,'Student Loan Avalanche Calc'!G53,'Student Loan Avalanche Calc'!J53,'Student Loan Avalanche Calc'!M53,'Student Loan Avalanche Calc'!P53,'Student Loan Avalanche Calc'!S53,'Student Loan Avalanche Calc'!V53,'Student Loan Avalanche Calc'!Y53) -> $23,573.53 | K55: 36
I56: 37 | J56: =SUM('Student Loan Avalanche Calc'!D54,'Student Loan Avalanche Calc'!G54,'Student Loan Avalanche Calc'!J54,'Student Loan Avalanche Calc'!M54,'Student Loan Avalanche Calc'!P54,'Student Loan Avalanche Calc'!S54,'Student Loan Avalanche Calc'!V54,'Student Loan Avalanche Calc'!Y54) -> $23,375.70 | K56: 37
I57: 38 | J57: =SUM('Student Loan Avalanche Calc'!D55,'Student Loan Avalanche Calc'!G55,'Student Loan Avalanche Calc'!J55,'Student Loan Avalanche Calc'!M55,'Student Loan Avalanche Calc'!P55,'Student Loan Avalanche Calc'!S55,'Student Loan Avalanche Calc'!V55,'Student Loan Avalanche Calc'!Y55) -> $23,176.31 | K57: 38
I58: 39 | J58: =SUM('Student Loan Avalanche Calc'!D56,'Student Loan Avalanche Calc'!G56,'Student Loan Avalanche Calc'!J56,'Student Loan Avalanche Calc'!M56,'Student Loan Avalanche Calc'!P56,'Student Loan Avalanche Calc'!S56,'Student Loan Avalanche Calc'!V56,'Student Loan Avalanche Calc'!Y56) -> $22,975.32 | K58: 39
I59: 40 | J59: =SUM('Student Loan Avalanche Calc'!D57,'Student Loan Avalanche Calc'!G57,'Student Loan Avalanche Calc'!J57,'Student Loan Avalanche Calc'!M57,'Student Loan Avalanche Calc'!P57,'Student Loan Avalanche Calc'!S57,'Student Loan Avalanche Calc'!V57,'Student Loan Avalanche Calc'!Y57) -> $22,772.75 | K59: 40
I60: 41 | J60: =SUM('Student Loan Avalanche Calc'!D58,'Student Loan Avalanche Calc'!G58,'Student Loan Avalanche Calc'!J58,'Student Loan Avalanche Calc'!M58,'Student Loan Avalanche Calc'!P58,'Student Loan Avalanche Calc'!S58,'Student Loan Avalanche Calc'!V58,'Student Loan Avalanche Calc'!Y58) -> $22,568.57 | K60: 41
I61: 42 | J61: =SUM('Student Loan Avalanche Calc'!D59,'Student Loan Avalanche Calc'!G59,'Student Loan Avalanche Calc'!J59,'Student Loan Avalanche Calc'!M59,'Student Loan Avalanche Calc'!P59,'Student Loan Avalanche Calc'!S59,'Student Loan Avalanche Calc'!V59,'Student Loan Avalanche Calc'!Y59) -> $22,362.76 | K61: 42
I62: 43 | J62: =SUM('Student Loan Avalanche Calc'!D60,'Student Loan Avalanche Calc'!G60,'Student Loan Avalanche Calc'!J60,'Student Loan Avalanche Calc'!M60,'Student Loan Avalanche Calc'!P60,'Student Loan Avalanche Calc'!S60,'Student Loan Avalanche Calc'!V60,'Student Loan Avalanche Calc'!Y60) -> $22,155.32 | K62: 43
I63: 44 | J63: =SUM('Student Loan Avalanche Calc'!D61,'Student Loan Avalanche Calc'!G61,'Student Loan Avalanche Calc'!J61,'Student Loan Avalanche Calc'!M61,'Student Loan Avalanche Calc'!P61,'Student Loan Avalanche Calc'!S61,'Student Loan Avalanche Calc'!V61,'Student Loan Avalanche Calc'!Y61) -> $21,946.23 | K63: 44
I64: 45 | J64: =SUM('Student Loan Avalanche Calc'!D62,'Student Loan Avalanche Calc'!G62,'Student Loan Avalanche Calc'!J62,'Student Loan Avalanche Calc'!M62,'Student Loan Avalanche Calc'!P62,'Student Loan Avalanche Calc'!S62,'Student Loan Avalanche Calc'!V62,'Student Loan Avalanche Calc'!Y62) -> $21,735.48 | K64: 45
I65: 46 | J65: =SUM('Student Loan Avalanche Calc'!D63,'Student Loan Avalanche Calc'!G63,'Student Loan Avalanche Calc'!J63,'Student Loan Avalanche Calc'!M63,'Student Loan Avalanche Calc'!P63,'Student Loan Avalanche Calc'!S63,'Student Loan Avalanche Calc'!V63,'Student Loan Avalanche Calc'!Y63) -> $21,523.05 | K65: 46
I66: 47 | J66: =SUM('Student Loan Avalanche Calc'!D64,'Student Loan Avalanche Calc'!G64,'Student Loan Avalanche Calc'!J64,'Student Loan Avalanche Calc'!M64,'Student Loan Avalanche Calc'!P64,'Student Loan Avalanche Calc'!S64,'Student Loan Avalanche Calc'!V64,'Student Loan Avalanche Calc'!Y64) -> $21,308.93 | K66: 47
I67: 48 | J67: =SUM('Student Loan Avalanche Calc'!D65,'Student Loan Avalanche Calc'!G65,'Student Loan Avalanche Calc'!J65,'Student Loan Avalanche Calc'!M65,'Student Loan Avalanche Calc'!P65,'Student Loan Avalanche Calc'!S65,'Student Loan Avalanche Calc'!V65,'Student Loan Avalanche Calc'!Y65) -> $21,093.10 | K67: 48
I68: 49 | J68: =SUM('Student Loan Avalanche Calc'!D66,'Student Loan Avalanche Calc'!G66,'Student Loan Avalanche Calc'!J66,'Student Loan Avalanche Calc'!M66,'Student Loan Avalanche Calc'!P66,'Student Loan Avalanche Calc'!S66,'Student Loan Avalanche Calc'!V66,'Student Loan Avalanche Calc'!Y66) -> $20,875.56 | K68: 49
I69: 50 | J69: =SUM('Student Loan Avalanche Calc'!D67,'Student Loan Avalanche Calc'!G67,'Student Loan Avalanche Calc'!J67,'Student Loan Avalanche Calc'!M67,'Student Loan Avalanche Calc'!P67,'Student Loan Avalanche Calc'!S67,'Student Loan Avalanche Calc'!V67,'Student Loan Avalanche Calc'!Y67) -> $20,656.28 | K69: 50
I70: 51 | J70: =SUM('Student Loan Avalanche Calc'!D68,'Student Loan Avalanche Calc'!G68,'Student Loan Avalanche Calc'!J68,'Student Loan Avalanche Calc'!M68,'Student Loan Avalanche Calc'!P68,'Student Loan Avalanche Calc'!S68,'Student Loan Avalanche Calc'!V68,'Student Loan Avalanche Calc'!Y68) -> $20,435.25 | K70: 51
I71: 52 | J71: =SUM('Student Loan Avalanche Calc'!D69,'Student Loan Avalanche Calc'!G69,'Student Loan Avalanche Calc'!J69,'Student Loan Avalanche Calc'!M69,'Student Loan Avalanche Calc'!P69,'Student Loan Avalanche Calc'!S69,'Student Loan Avalanche Calc'!V69,'Student Loan Avalanche Calc'!Y69) -> $20,212.46 | K71: 52
I72: 53 | J72: =SUM('Student Loan Avalanche Calc'!D70,'Student Loan Avalanche Calc'!G70,'Student Loan Avalanche Calc'!J70,'Student Loan Avalanche Calc'!M70,'Student Loan Avalanche Calc'!P70,'Student Loan Avalanche Calc'!S70,'Student Loan Avalanche Calc'!V70,'Student Loan Avalanche Calc'!Y70) -> $19,987.90 | K72: 53
I73: 54 | J73: =SUM('Student Loan Avalanche Calc'!D71,'Student Loan Avalanche Calc'!G71,'Student Loan Avalanche Calc'!J71,'Student Loan Avalanche Calc'!M71,'Student Loan Avalanche Calc'!P71,'Student Loan Avalanche Calc'!S71,'Student Loan Avalanche Calc'!V71,'Student Loan Avalanche Calc'!Y71) -> $19,761.54 | K73: 54
I74: 55 | J74: =SUM('Student Loan Avalanche Calc'!D72,'Student Loan Avalanche Calc'!G72,'Student Loan Avalanche Calc'!J72,'Student Loan Avalanche Calc'!M72,'Student Loan Avalanche Calc'!P72,'Student Loan Avalanche Calc'!S72,'Student Loan Avalanche Calc'!V72,'Student Loan Avalanche Calc'!Y72) -> $19,533.38 | K74: 55
I75: 56 | J75: =SUM('Student Loan Avalanche Calc'!D73,'Student Loan Avalanche Calc'!G73,'Student Loan Avalanche Calc'!J73,'Student Loan Avalanche Calc'!M73,'Student Loan Avalanche Calc'!P73,'Student Loan Avalanche Calc'!S73,'Student Loan Avalanche Calc'!V73,'Student Loan Avalanche Calc'!Y73) -> $19,303.39 | K75: 56
I76: 57 | J76: =SUM('Student Loan Avalanche Calc'!D74,'Student Loan Avalanche Calc'!G74,'Student Loan Avalanche Calc'!J74,'Student Loan Avalanche Calc'!M74,'Student Loan Avalanche Calc'!P74,'Student Loan Avalanche Calc'!S74,'Student Loan Avalanche Calc'!V74,'Student Loan Avalanche Calc'!Y74) -> $19,071.56 | K76: 57
I77: 58 | J77: =SUM('Student Loan Avalanche Calc'!D75,'Student Loan Avalanche Calc'!G75,'Student Loan Avalanche Calc'!J75,'Student Loan Avalanche Calc'!M75,'Student Loan Avalanche Calc'!P75,'Student Loan Avalanche Calc'!S75,'Student Loan Avalanche Calc'!V75,'Student Loan Avalanche Calc'!Y75) -> $18,837.88 | K77: 58
I78: 59 | J78: =SUM('Student Loan Avalanche Calc'!D76,'Student Loan Avalanche Calc'!G76,'Student Loan Avalanche Calc'!J76,'Student Loan Avalanche Calc'!M76,'Student Loan Avalanche Calc'!P76,'Student Loan Avalanche Calc'!S76,'Student Loan Avalanche Calc'!V76,'Student Loan Avalanche Calc'!Y76) -> $18,602.34 | K78: 59
I79: 60 | J79: =SUM('Student Loan Avalanche Calc'!D77,'Student Loan Avalanche Calc'!G77,'Student Loan Avalanche Calc'!J77,'Student Loan Avalanche Calc'!M77,'Student Loan Avalanche Calc'!P77,'Student Loan Avalanche Calc'!S77,'Student Loan Avalanche Calc'!V77,'Student Loan Avalanche Calc'!Y77) -> $18,364.91 | K79: 60
I80: 61 | J80: =SUM('Student Loan Avalanche Calc'!D78,'Student Loan Avalanche Calc'!G78,'Student Loan Avalanche Calc'!J78,'Student Loan Avalanche Calc'!M78,'Student Loan Avalanche Calc'!P78,'Student Loan Avalanche Calc'!S78,'Student Loan Avalanche Calc'!V78,'Student Loan Avalanche Calc'!Y78) -> $18,125.57 | K80: 61
I81: 62 | J81: =SUM('Student Loan Avalanche Calc'!D79,'Student Loan Avalanche Calc'!G79,'Student Loan Avalanche Calc'!J79,'Student Loan Avalanche Calc'!M79,'Student Loan Avalanche Calc'!P79,'Student Loan Avalanche Calc'!S79,'Student Loan Avalanche Calc'!V79,'Student Loan Avalanche Calc'!Y79) -> $17,884.33 | K81: 62
I82: 63 | J82: =SUM('Student Loan Avalanche Calc'!D80,'Student Loan Avalanche Calc'!G80,'Student Loan Avalanche Calc'!J80,'Student Loan Avalanche Calc'!M80,'Student Loan Avalanche Calc'!P80,'Student Loan Avalanche Calc'!S80,'Student Loan Avalanche Calc'!V80,'Student Loan Avalanche Calc'!Y80) -> $17,641.14 | K82: 63
I83: 64 | J83: =SUM('Student Loan Avalanche Calc'!D81,'Student Loan Avalanche Calc'!G81,'Student Loan Avalanche Calc'!J81,'Student Loan Avalanche Calc'!M81,'Student Loan Avalanche Calc'!P81,'Student Loan Avalanche Calc'!S81,'Student Loan Avalanche Calc'!V81,'Student Loan Avalanche Calc'!Y81) -> $17,396.02 | K83: 64
I84: 65 | J84: =SUM('Student Loan Avalanche Calc'!D82,'Student Loan Avalanche Calc'!G82,'Student Loan Avalanche Calc'!J82,'Student Loan Avalanche Calc'!M82,'Student Loan Avalanche Calc'!P82,'Student Loan Avalanche Calc'!S82,'Student Loan Avalanche Calc'!V82,'Student Loan Avalanche Calc'!Y82) -> $17,148.92 | K84: 65
I85: 66 | J85: =SUM('Student Loan Avalanche Calc'!D83,'Student Loan Avalanche Calc'!G83,'Student Loan Avalanche Calc'!J83,'Student Loan Avalanche Calc'!M83,'Student Loan Avalanche Calc'!P83,'Student Loan Avalanche Calc'!S83,'Student Loan Avalanche Calc'!V83,'Student Loan Avalanche Calc'!Y83) -> $16,899.85 | K85: 66
I86: 67 | J86: =SUM('Student Loan Avalanche Calc'!D84,'Student Loan Avalanche Calc'!G84,'Student Loan Avalanche Calc'!J84,'Student Loan Avalanche Calc'!M84,'Student Loan Avalanche Calc'!P84,'Student Loan Avalanche Calc'!S84,'Student Loan Avalanche Calc'!V84,'Student Loan Avalanche Calc'!Y84) -> $16,648.77 | K86: 67
I87: 68 | J87: =SUM('Student Loan Avalanche Calc'!D85,'Student Loan Avalanche Calc'!G85,'Student Loan Avalanche Calc'!J85,'Student Loan Avalanche Calc'!M85,'Student Loan Avalanche Calc'!P85,'Student Loan Avalanche Calc'!S85,'Student Loan Avalanche Calc'!V85,'Student Loan Avalanche Calc'!Y85) -> $16,395.68 | K87: 68
I88: 69 | J88: =SUM('Student Loan Avalanche Calc'!D86,'Student Loan Avalanche Calc'!G86,'Student Loan Avalanche Calc'!J86,'Student Loan Avalanche Calc'!M86,'Student Loan Avalanche Calc'!P86,'Student Loan Avalanche Calc'!S86,'Student Loan Avalanche Calc'!V86,'Student Loan Avalanche Calc'!Y86) -> $16,140.56 | K88: 69
I89: 70 | J89: =SUM('Student Loan Avalanche Calc'!D87,'Student Loan Avalanche Calc'!G87,'Student Loan Avalanche Calc'!J87,'Student Loan Avalanche Calc'!M87,'Student Loan Avalanche Calc'!P87,'Student Loan Avalanche Calc'!S87,'Student Loan Avalanche Calc'!V87,'Student Loan Avalanche Calc'!Y87) -> $15,883.39 | K89: 70
I90: 71 | J90: =SUM('Student Loan Avalanche Calc'!D88,'Student Loan Avalanche Calc'!G88,'Student Loan Avalanche Calc'!J88,'Student Loan Avalanche Calc'!M88,'Student Loan Avalanche Calc'!P88,'Student Loan Avalanche Calc'!S88,'Student Loan Avalanche Calc'!V88,'Student Loan Avalanche Calc'!Y88) -> $15,624.16 | K90: 71
I91: 72 | J91: =SUM('Student Loan Avalanche Calc'!D89,'Student Loan Avalanche Calc'!G89,'Student Loan Avalanche Calc'!J89,'Student Loan Avalanche Calc'!M89,'Student Loan Avalanche Calc'!P89,'Student Loan Avalanche Calc'!S89,'Student Loan Avalanche Calc'!V89,'Student Loan Avalanche Calc'!Y89) -> $15,362.83 | K91: 72
I92: 73 | J92: =SUM('Student Loan Avalanche Calc'!D90,'Student Loan Avalanche Calc'!G90,'Student Loan Avalanche Calc'!J90,'Student Loan Avalanche Calc'!M90,'Student Loan Avalanche Calc'!P90,'Student Loan Avalanche Calc'!S90,'Student Loan Avalanche Calc'!V90,'Student Loan Avalanche Calc'!Y90) -> $15,099.41 | K92: 73
I93: 74 | J93: =SUM('Student Loan Avalanche Calc'!D91,'Student Loan Avalanche Calc'!G91,'Student Loan Avalanche Calc'!J91,'Student Loan Avalanche Calc'!M91,'Student Loan Avalanche Calc'!P91,'Student Loan Avalanche Calc'!S91,'Student Loan Avalanche Calc'!V91,'Student Loan Avalanche Calc'!Y91) -> $14,833.87 | K93: 74
I94: 75 | J94: =SUM('Student Loan Avalanche Calc'!D92,'Student Loan Avalanche Calc'!G92,'Student Loan Avalanche Calc'!J92,'Student Loan Avalanche Calc'!M92,'Student Loan Avalanche Calc'!P92,'Student Loan Avalanche Calc'!S92,'Student Loan Avalanche Calc'!V92,'Student Loan Avalanche Calc'!Y92) -> $14,566.19 | K94: 75
I95: 76 | J95: =SUM('Student Loan Avalanche Calc'!D93,'Student Loan Avalanche Calc'!G93,'Student Loan Avalanche Calc'!J93,'Student Loan Avalanche Calc'!M93,'Student Loan Avalanche Calc'!P93,'Student Loan Avalanche Calc'!S93,'Student Loan Avalanche Calc'!V93,'Student Loan Avalanche Calc'!Y93) -> $14,296.36 | K95: 76
I96: 77 | J96: =SUM('Student Loan Avalanche Calc'!D94,'Student Loan Avalanche Calc'!G94,'Student Loan Avalanche Calc'!J94,'Student Loan Avalanche Calc'!M94,'Student Loan Avalanche Calc'!P94,'Student Loan Avalanche Calc'!S94,'Student Loan Avalanche Calc'!V94,'Student Loan Avalanche Calc'!Y94) -> $14,024.35 | K96: 77
I97: 78 | J97: =SUM('Student Loan Avalanche Calc'!D95,'Student Loan Avalanche Calc'!G95,'Student Loan Avalanche Calc'!J95,'Student Loan Avalanche Calc'!M95,'Student Loan Avalanche Calc'!P95,'Student Loan Avalanche Calc'!S95,'Student Loan Avalanche Calc'!V95,'Student Loan Avalanche Calc'!Y95) -> $13,750.16 | K97: 78
I98: 79 | J98: =SUM('Student Loan Avalanche Calc'!D96,'Student Loan Avalanche Calc'!G96,'Student Loan Avalanche Calc'!J96,'Student Loan Avalanche Calc'!M96,'Student Loan Avalanche Calc'!P96,'Student Loan Avalanche Calc'!S96,'Student Loan Avalanche Calc'!V96,'Student Loan Avalanche Calc'!Y96) -> $13,473.75 | K98: 79
I99: 80 | J99: =SUM('Student Loan Avalanche Calc'!D97,'Student Loan Avalanche Calc'!G97,'Student Loan Avalanche Calc'!J97,'Student Loan Avalanche Calc'!M97,'Student Loan Avalanche Calc'!P97,'Student Loan Avalanche Calc'!S97,'Student Loan Avalanche Calc'!V97,'Student Loan Avalanche Calc'!Y97) -> $13,195.11 | K99: 80
I100: 81 | J100: =SUM('Student Loan Avalanche Calc'!D98,'Student Loan Avalanche Calc'!G98,'Student Loan Avalanche Calc'!J98,'Student Loan Avalanche Calc'!M98,'Student Loan Avalanche Calc'!P98,'Student Loan Avalanche Calc'!S98,'Student Loan Avalanche Calc'!V98,'Student Loan Avalanche Calc'!Y98) -> $12,914.23 | K100: 81
I101: 82 | J101: =SUM('Student Loan Avalanche Calc'!D99,'Student Loan Avalanche Calc'!G99,'Student Loan Avalanche Calc'!J99,'Student Loan Avalanche Calc'!M99,'Student Loan Avalanche Calc'!P99,'Student Loan Avalanche Calc'!S99,'Student Loan Avalanche Calc'!V99,'Student Loan Avalanche Calc'!Y99) -> $12,631.07 | K101: 82
I102: 83 | J102: =SUM('Student Loan Avalanche Calc'!D100,'Student Loan Avalanche Calc'!G100,'Student Loan Avalanche Calc'!J100,'Student Loan Avalanche Calc'!M100,'Student Loan Avalanche Calc'!P100,'Student Loan Avalanche Calc'!S100,'Student Loan Avalanche Calc'!V100,'Student Loan Avalanche Calc'!Y100) -> $12,362.91 | K102: 83
I103: 84 | J103: =SUM('Student Loan Avalanche Calc'!D101,'Student Loan Avalanche Calc'!G101,'Student Loan Avalanche Calc'!J101,'Student Loan Avalanche Calc'!M101,'Student Loan Avalanche Calc'!P101,'Student Loan Avalanche Calc'!S101,'Student Loan Avalanche Calc'!V101,'Student Loan Avalanche Calc'!Y101) -> $12,074.94 | K103: 84
I104: 85 | J104: =SUM('Student Loan Avalanche Calc'!D102,'Student Loan Avalanche Calc'!G102,'Student Loan Avalanche Calc'!J102,'Student Loan Avalanche Calc'!M102,'Student Loan Avalanche Calc'!P102,'Student Loan Avalanche Calc'!S102,'Student Loan Avalanche Calc'!V102,'Student Loan Avalanche Calc'!Y102) -> $11,784.31 | K104: 85
I105: 86 | J105: =SUM('Student Loan Avalanche Calc'!D103,'Student Loan Avalanche Calc'!G103,'Student Loan Avalanche Calc'!J103,'Student Loan Avalanche Calc'!M103,'Student Loan Avalanche Calc'!P103,'Student Loan Avalanche Calc'!S103,'Student Loan Avalanche Calc'!V103,'Student Loan Avalanche Calc'!Y103) -> $11,491.01 | K105: 86
I106: 87 | J106: =SUM('Student Loan Avalanche Calc'!D104,'Student Loan Avalanche Calc'!G104,'Student Loan Avalanche Calc'!J104,'Student Loan Avalanche Calc'!M104,'Student Loan Avalanche Calc'!P104,'Student Loan Avalanche Calc'!S104,'Student Loan Avalanche Calc'!V104,'Student Loan Avalanche Calc'!Y104) -> $11,195.00 | K106: 87
I107: 88 | J107: =SUM('Student Loan Avalanche Calc'!D105,'Student Loan Avalanche Calc'!G105,'Student Loan Avalanche Calc'!J105,'Student Loan Avalanche Calc'!M105,'Student Loan Avalanche Calc'!P105,'Student Loan Avalanche Calc'!S105,'Student Loan Avalanche Calc'!V105,'Student Loan Avalanche Calc'!Y105) -> $10,896.26 | K107: 88
I108: 89 | J108: =SUM('Student Loan Avalanche Calc'!D106,'Student Loan Avalanche Calc'!G106,'Student Loan Avalanche Calc'!J106,'Student Loan Avalanche Calc'!M106,'Student Loan Avalanche Calc'!P106,'Student Loan Avalanche Calc'!S106,'Student Loan Avalanche Calc'!V106,'Student Loan Avalanche Calc'!Y106) -> $10,594.77 | K108: 89
I109: 90 | J109: =SUM('Student Loan Avalanche Calc'!D107,'Student Loan Avalanche Calc'!G107,'Student Loan Avalanche Calc'!J107,'Student Loan Avalanche Calc'!M107,'Student Loan Avalanche Calc'!P107,'Student Loan Avalanche Calc'!S107,'Student Loan Avalanche Calc'!V107,'Student Loan Avalanche Calc'!Y107) -> $10,290.49 | K109: 90
I110: 91 | J110: =SUM('Student Loan Avalanche Calc'!D108,'Student Loan Avalanche Calc'!G108,'Student Loan Avalanche Calc'!J108,'Student Loan Avalanche Calc'!M108,'Student Loan Avalanche Calc'!P108,'Student Loan Avalanche Calc'!S108,'Student Loan Avalanche Calc'!V108,'Student Loan Avalanche Calc'!Y108) -> $9,983.41 | K110: 91
I111: 92 | J111: =SUM('Student Loan Avalanche Calc'!D109,'Student Loan Avalanche Calc'!G109,'Student Loan Avalanche Calc'!J109,'Student Loan Avalanche Calc'!M109,'Student Loan Avalanche Calc'!P109,'Student Loan Avalanche Calc'!S109,'Student Loan Avalanche Calc'!V109,'Student Loan Avalanche Calc'!Y109) -> $9,673.50 | K111: 92
I112: 93 | J112: =SUM('Student Loan Avalanche Calc'!D110,'Student Loan Avalanche Calc'!G110,'Student Loan Avalanche Calc'!J110,'Student Loan Avalanche Calc'!M110,'Student Loan Avalanche Calc'!P110,'Student Loan Avalanche Calc'!S110,'Student Loan Avalanche Calc'!V110,'Student Loan Avalanche Calc'!Y110) -> $9,360.72 | K112: 93
I113: 94 | J113: =SUM('Student Loan Avalanche Calc'!D111,'Student Loan Avalanche Calc'!G111,'Student Loan Avalanche Calc'!J111,'Student Loan Avalanche Calc'!M111,'Student Loan Avalanche Calc'!P111,'Student Loan Avalanche Calc'!S111,'Student Loan Avalanche Calc'!V111,'Student Loan Avalanche Calc'!Y111) -> $9,045.06 | K113: 94
I114: 95 | J114: =SUM('Student Loan Avalanche Calc'!D112,'Student Loan Avalanche Calc'!G112,'Student Loan Avalanche Calc'!J112,'Student Loan Avalanche Calc'!M112,'Student Loan Avalanche Calc'!P112,'Student Loan Avalanche Calc'!S112,'Student Loan Avalanche Calc'!V112,'Student Loan Avalanche Calc'!Y112) -> $8,726.49 | K114: 95
I115: 96 | J115: =SUM('Student Loan Avalanche Calc'!D113,'Student Loan Avalanche Calc'!G113,'Student Loan Avalanche Calc'!J113,'Student Loan Avalanche Calc'!M113,'Student Loan Avalanche Calc'!P113,'Student Loan Avalanche Calc'!S113,'Student Loan Avalanche Calc'!V113,'Student Loan Avalanche Calc'!Y113) -> $8,404.97 | K115: 96
I116: 97 | J116: =SUM('Student Loan Avalanche Calc'!D114,'Student Loan Avalanche Calc'!G114,'Student Loan Avalanche Calc'!J114,'Student Loan Avalanche Calc'!M114,'Student Loan Avalanche Calc'!P114,'Student Loan Avalanche Calc'!S114,'Student Loan Avalanche Calc'!V114,'Student Loan Avalanche Calc'!Y114) -> $8,080.48 | K116: 97
I117: 98 | J117: =SUM('Student Loan Avalanche Calc'!D115,'Student Loan Avalanche Calc'!G115,'Student Loan Avalanche Calc'!J115,'Student Loan Avalanche Calc'!M115,'Student Loan Avalanche Calc'!P115,'Student Loan Avalanche Calc'!S115,'Student Loan Avalanche Calc'!V115,'Student Loan Avalanche Calc'!Y115) -> $7,753.00 | K117: 98
I118: 99 | J118: =SUM('Student Loan Avalanche Calc'!D116,'Student Loan Avalanche Calc'!G116,'Student Loan Avalanche Calc'!J116,'Student Loan Avalanche Calc'!M116,'Student Loan Avalanche Calc'!P116,'Student Loan Avalanche Calc'!S116,'Student Loan Avalanche Calc'!V116,'Student Loan Avalanche Calc'!Y116) -> $7,422.49 | K118: 99
I119: 100 | J119: =SUM('Student Loan Avalanche Calc'!D117,'Student Loan Avalanche Calc'!G117,'Student Loan Avalanche Calc'!J117,'Student Loan Avalanche Calc'!M117,'Student Loan Avalanche Calc'!P117,'Student Loan Avalanche Calc'!S117,'Student Loan Avalanche Calc'!V117,'Student Loan Avalanche Calc'!Y117) -> $7,088.93 | K119: 100
I120: 101 | J120: =SUM('Student Loan Avalanche Calc'!D118,'Student Loan Avalanche Calc'!G118,'Student Loan Avalanche Calc'!J118,'Student Loan Avalanche Calc'!M118,'Student Loan Avalanche Calc'!P118,'Student Loan Avalanche Calc'!S118,'Student Loan Avalanche Calc'!V118,'Student Loan Avalanche Calc'!Y118) -> $6,752.29 | K120: 101
I121: 102 | J121: =SUM('Student Loan Avalanche Calc'!D119,'Student Loan Avalanche Calc'!G119,'Student Loan Avalanche Calc'!J119,'Student Loan Avalanche Calc'!M119,'Student Loan Avalanche Calc'!P119,'Student Loan Avalanche Calc'!S119,'Student Loan Avalanche Calc'!V119,'Student Loan Avalanche Calc'!Y119) -> $6,412.54 | K121: 102
I122: 103 | J122: =SUM('Student Loan Avalanche Calc'!D120,'Student Loan Avalanche Calc'!G120,'Student Loan Avalanche Calc'!J120,'Student Loan Avalanche Calc'!M120,'Student Loan Avalanche Calc'!P120,'Student Loan Avalanche Calc'!S120,'Student Loan Avalanche Calc'!V120,'Student Loan Avalanche Calc'!Y120) -> $6,069.65 | K122: 103
I123: 104 | J123: =SUM('Student Loan Avalanche Calc'!D121,'Student Loan Avalanche Calc'!G121,'Student Loan Avalanche Calc'!J121,'Student Loan Avalanche Calc'!M121,'Student Loan Avalanche Calc'!P121,'Student Loan Avalanche Calc'!S121,'Student Loan Avalanche Calc'!V121,'Student Loan Avalanche Calc'!Y121) -> $5,723.59 | K123: 104
I124: 105 | J124: =SUM('Student Loan Avalanche Calc'!D122,'Student Loan Avalanche Calc'!G122,'Student Loan Avalanche Calc'!J122,'Student Loan Avalanche Calc'!M122,'Student Loan Avalanche Calc'!P122,'Student Loan Avalanche Calc'!S122,'Student Loan Avalanche Calc'!V122,'Student Loan Avalanche Calc'!Y122) -> $5,374.33 | K124: 105
I125: 106 | J125: =SUM('Student Loan Avalanche Calc'!D123,'Student Loan Avalanche Calc'!G123,'Student Loan Avalanche Calc'!J123,'Student Loan Avalanche Calc'!M123,'Student Loan Avalanche Calc'!P123,'Student Loan Avalanche Calc'!S123,'Student Loan Avalanche Calc'!V123,'Student Loan Avalanche Calc'!Y123) -> $5,021.84 | K125: 106
I126: 107 | J126: =SUM('Student Loan Avalanche Calc'!D124,'Student Loan Avalanche Calc'!G124,'Student Loan Avalanche Calc'!J124,'Student Loan Avalanche Calc'!M124,'Student Loan Avalanche Calc'!P124,'Student Loan Avalanche Calc'!S124,'Student Loan Avalanche Calc'!V124,'Student Loan Avalanche Calc'!Y124) -> $4,666.09 | K126: 107
I127: 108 | J127: =SUM('Student Loan Avalanche Calc'!D125,'Student Loan Avalanche Calc'!G125,'Student Loan Avalanche Calc'!J125,'Student Loan Avalanche Calc'!M125,'Student Loan Avalanche Calc'!P125,'Student Loan Avalanche Calc'!S125,'Student Loan Avalanche Calc'!V125,'Student Loan Avalanche Calc'!Y125) -> $4,307.05 | K127: 108
I128: 109 | J128: =SUM('Student Loan Avalanche Calc'!D126,'Student Loan Avalanche Calc'!G126,'Student Loan Avalanche Calc'!J126,'Student Loan Avalanche Calc'!M126,'Student Loan Avalanche Calc'!P126,'Student Loan Avalanche Calc'!S126,'Student Loan Avalanche Calc'!V126,'Student Loan Avalanche Calc'!Y126) -> $3,944.69 | K128: 109
I129: 110 | J129: =SUM('Student Loan Avalanche Calc'!D127,'Student Loan Avalanche Calc'!G127,'Student Loan Avalanche Calc'!J127,'Student Loan Avalanche Calc'!M127,'Student Loan Avalanche Calc'!P127,'Student Loan Avalanche Calc'!S127,'Student Loan Avalanche Calc'!V127,'Student Loan Avalanche Calc'!Y127) -> $3,578.98 | K129: 110
I130: 111 | J130: =SUM('Student Loan Avalanche Calc'!D128,'Student Loan Avalanche Calc'!G128,'Student Loan Avalanche Calc'!J128,'Student Loan Avalanche Calc'!M128,'Student Loan Avalanche Calc'!P128,'Student Loan Avalanche Calc'!S128,'Student Loan Avalanche Calc'!V128,'Student Loan Avalanche Calc'!Y128) -> $3,209.88 | K130: 111
I131: 112 | J131: =SUM('Student Loan Avalanche Calc'!D129,'Student Loan Avalanche Calc'!G129,'Student Loan Avalanche Calc'!J129,'Student Loan Avalanche Calc'!M129,'Student Loan Avalanche Calc'!P129,'Student Loan Avalanche Calc'!S129,'Student Loan Avalanche Calc'!V129,'Student Loan Avalanche Calc'!Y129) -> $2,837.37 | K131: 112
I132: 113 | J132: =SUM('Student Loan Avalanche Calc'!D130,'Student Loan Avalanche Calc'!G130,'Student Loan Avalanche Calc'!J130,'Student Loan Avalanche Calc'!M130,'Student Loan Avalanche Calc'!P130,'Student Loan Avalanche Calc'!S130,'Student Loan Avalanche Calc'!V130,'Student Loan Avalanche Calc'!Y130) -> $2,461.41 | K132: 113
I133: 114 | J133: =SUM('Student Loan Avalanche Calc'!D131,'Student Loan Avalanche Calc'!G131,'Student Loan Avalanche Calc'!J131,'Student Loan Avalanche Calc'!M131,'Student Loan Avalanche Calc'!P131,'Student Loan Avalanche Calc'!S131,'Student Loan Avalanche Calc'!V131,'Student Loan Avalanche Calc'!Y131) -> $2,081.97 | K133: 114
I134: 115 | J134: =SUM('Student Loan Avalanche Calc'!D132,'Student Loan Avalanche Calc'!G132,'Student Loan Avalanche Calc'!J132,'Student Loan Avalanche Calc'!M132,'Student Loan Avalanche Calc'!P132,'Student Loan Avalanche Calc'!S132,'Student Loan Avalanche Calc'!V132,'Student Loan Avalanche Calc'!Y132) -> $1,699.02 | K134: 115
I135: 116 | J135: =SUM('Student Loan Avalanche Calc'!D133,'Student Loan Avalanche Calc'!G133,'Student Loan Avalanche Calc'!J133,'Student Loan Avalanche Calc'!M133,'Student Loan Avalanche Calc'!P133,'Student Loan Avalanche Calc'!S133,'Student Loan Avalanche Calc'!V133,'Student Loan Avalanche Calc'!Y133) -> $1,312.53 | K135: 116
I136: 117 | J136: =SUM('Student Loan Avalanche Calc'!D134,'Student Loan Avalanche Calc'!G134,'Student Loan Avalanche Calc'!J134,'Student Loan Avalanche Calc'!M134,'Student Loan Avalanche Calc'!P134,'Student Loan Avalanche Calc'!S134,'Student Loan Avalanche Calc'!V134,'Student Loan Avalanche Calc'!Y134) -> $922.45 | K136: 117
I137: 118 | J137: =SUM('Student Loan Avalanche Calc'!D135,'Student Loan Avalanche Calc'!G135,'Student Loan Avalanche Calc'!J135,'Student Loan Avalanche Calc'!M135,'Student Loan Avalanche Calc'!P135,'Student Loan Avalanche Calc'!S135,'Student Loan Avalanche Calc'!V135,'Student Loan Avalanche Calc'!Y135) -> $529.40 | K137: 118
I138: 119 | J138: =SUM('Student Loan Avalanche Calc'!D136,'Student Loan Avalanche Calc'!G136,'Student Loan Avalanche Calc'!J136,'Student Loan Avalanche Calc'!M136,'Student Loan Avalanche Calc'!P136,'Student Loan Avalanche Calc'!S136,'Student Loan Avalanche Calc'!V136,'Student Loan Avalanche Calc'!Y136) -> $133.39 | K138: 119
I139: 120 | J139: =SUM('Student Loan Avalanche Calc'!D137,'Student Loan Avalanche Calc'!G137,'Student Loan Avalanche Calc'!J137,'Student Loan Avalanche Calc'!M137,'Student Loan Avalanche Calc'!P137,'Student Loan Avalanche Calc'!S137,'Student Loan Avalanche Calc'!V137,'Student Loan Avalanche Calc'!Y137) -> 0 | K139: 120
